Workbook

Sheet Printen tarieven
B2: RICHTLIJN TARIEVEN (graaf) werkzaamheden TELECOM. | K2: jaar/versie: | L2: ='Invoerblad tarieven'!$G$3 -> 2023 v1
B3: op basis van de bodemgesteldheid ten behoeve van de Algemene uitkering gemeentefonds. | L3: KOSTENSPECIFICATIE

Sheet Invoerblad tarieven
B1: Invoerscherm:
B2: Bron: Cobouw Kosteninformatie (GWWkosten.nl) | I2: http://www.gwwkosten.nl/
F3: Betreft jaar en versienummer: | G3: 2023 v1
B4: Omschrijving volgens GWWkosten | C4: Aanvullende informatie | F4: bijgewerkt dd : | G4: 2023-11-23
A5: Straatwerk | B5: GWW Kosten, uurtarieven straatwerk 5% ziekte, loonkosten per uur (excl. Uitv.k en AKWR) | F5: uurtarieven en loonkosten*
F6: actueel tarief: | G6: in te voeren:
B7: Groep D stratenmaker I, inzittende werkbus | F7: =Moederblad!F9 -> 40.28875 | G7: 40.28875 | I7: 11 Uurtarieven en lonen
B8: Groep B, stratenmaker II, chauffeur werkbus | F8: =Moederblad!F10 -> 38.305625 | G8: 38.305625 | I8: 11 Uurtarieven en lonen
B9: Transport, bestelauto met open laadbak en autolaadkraan | C9: Uitgangspunt is tarief voor het jaar | D9: 2022 | E9: 11.9313 | I9: Indexcijfer 2e kwartaal voorafgaand aan betreffende jaar: 2016
B10: Indexcijfer operationele autolease, nieuwe leasecontracten incl. brandstof, 2e kwartaal van elk jaar, bron CBS (prijsindex 2015 = 100) | D10: ="2e kwartaal " &D9-1 -> 2e kwartaal 2021 | E10: 108.3 | I10: CBS Indexcijfer operationele autolease (periode aanpassen)
D11: ="2e kwartaal "&LEFT(G3,4)-1 -> 2e kwartaal 2022 | E11: 129.8 | F11: 11.93 | G11: 11.93 | I11: Indexcijfer 2e kwartaal voorafgaand aan betreffende jaar
A13: Materiaal | B13: GWW Kosten: | F13: Funderingslagen en elementverhardingen | M13: =L13-1 -> -1
F14: actueel tarief: | G14: in te voeren:
B15: Straatstenen, gebakken
B16: Straatklinkers formaat WF tot 5000 stuks | C16: Kwaliteit A4-12, per 1000 | F16: =Moederblad!D33 -> 416 | G16: 416 | I16: Leveren straatklinkers
B17: Straatklinkers formaat KK 80 tot 5000 stuks | C17: Kwaliteit A4-12, per 1000 | F17: =Moederblad!D34 -> 642 | G17: 642 | I17: Leveren straatklinkers
B19: Straatstenen, beton:
B20: Betonstraatstenen keiformaat, heide, 210 x 105 x 80 mm | C20: KF (keiformaat), volle vracht, per 1000 | F20: =Moederblad!D35 -> 309 | G20: 309 | I20: Leveren betonstraatstenen
B22: Tegels beton:
B23: Trottoirtegels, grijs, 300 x 300 x 45 mm | C23: Per m2, komo, volle vracht | F23: =Moederblad!H33 -> 10.12 | G23: 10.12 | I23: Leveren betontegel, 300 x 300 mm
B24: Trottoirtegels, grijs, 300 x 300 x 80 mm | C24: Per m2, komo, volle vracht | F24: =Moederblad!H34 -> 15.18 | G24: 15.18 | I24: Leveren betontegel, 300 x 300 mm
B26: Straatzand:
B27: Straatzand 10 - 25 m3 | C27: Per m3 | F27: =Moederblad!L33 -> 14.75 | G27: 14.75 | I27: Leveren grond
A29: Groen | B29: GWW Kosten: | F29: Groenvoorzieningen
F30: actueel tarief: | G30: in te voeren:
B31: Hovenier A, loongroep 4, schaal 8, chauffeur werkbus | C31: Uurtarief Cultuurtechnisch medewerker | F31: =Moederblad!F20 -> 34.506375 | G31: 34.506375 | I31: Uurtarieven groenwerk en kust- en oeverwerk
B32: Transport, bestelauto met open laadbak en autolaadkraan | C32: Overgenomen van Straatwerk (CBS-index) | F32: =Moederblad!F21 -> 11.93 | G32: =G11 -> 11.93 | I32: Direct gekoppeld aan tarief bij Straatwerk
B34: Bermmengsel | C34: Graszaad, prijs per kg | F34: =Moederblad!D49 -> 7.2 | G34: 7.2 | I34: Graszaad en groenbemesters
B35: Gazonmengsel | C35: Graszaad, prijs per kg | F35: =Moederblad!D50 -> 7.95 | G35: 7.95 | I35: Graszaad en groenbemesters
B37: * Bij een juiste invoer en acceptatie zijn de tarieven in de kolom: - actueel tarief en - in te voeren gelijk !!!

Sheet Moederblad
A2: RICHTLIJN TARIEVEN | I2: jaar/versie: | J2: ='Invoerblad tarieven'!$G$3 -> 2023 v1
I3: KOSTENSPECIFICATIE
A5: 1) UITVOERINGSKOSTEN | J5: wijzigt jaarlijks, zie blad Invoerblad Tarieven
J6: Bedrag gebruikt voor berekening verder in dit blad
A7: a) Ploegkosten per | B7: 1 november voorgaand jaar | F7: Per uur | J7: Bedrag gebruikt voor berekening in overige bladen
A8: Bron, zie Invoerblad Tarieven
A9: ='Invoerblad tarieven'!B7 -> Groep D stratenmaker I, inzittende werkbus | F9: ='Invoerblad tarieven'!G7 -> 40.28875
A10: ='Invoerblad tarieven'!B8 -> Groep B, stratenmaker II, chauffeur werkbus | F10: ='Invoerblad tarieven'!G8 -> 38.305625
A11: ='Invoerblad tarieven'!B9 -> Transport, bestelauto met open laadbak en autolaadkraan | F11: ='Invoerblad tarieven'!G11 -> 11.93
F12: --------------------+
F13: =SUM(F9:F11) -> 90.524375
A14: Alg. kosten winst/risico aannemer | E14: =12/100 -> 0.12 | F14: =ROUND(E14*F13,2) -> 10.86
F15: ---------------------+
D16: TOTAAL per ploeguur | F16: =SUM(F13:F14) -> 101.384375 | G16: TOTAAL per manuur | I16: =ROUND(F16/2,2) -> 50.69
A18: kosten loon groen (Cultuurtechnisch medewerker) | F18: Per uur
A20: ='Invoerblad tarieven'!B31 -> Hovenier A, loongroep 4, schaal 8, chauffeur werkbus | F20: ='Invoerblad tarieven'!G31 -> 34.506375 | G20: (met 5% ziekteverzuim)
A21: ='Invoerblad tarieven'!B32 -> Transport, bestelauto met open laadbak en autolaadkraan | F21: ='Invoerblad tarieven'!G32 -> 11.93
F22: --------------------+
F23: =SUM(F20:F21) -> 46.436375
A24: Alg. kosten winst/risico aannemer | E24: =12/100 -> 0.12 | F24: =ROUND(E24*F23,2) -> 5.57
F25: ---------------------+
D26: TOTAAL per manuur | F26: =SUM(F23:F24) -> 52.006375 | I26: =ROUND(F26,2) -> 52.01
A28: b) kosten materiaal
A29: Berekening materiaalprijzen, incl 15% magazijntoeslag
A30: KLINKERS | F30: TEGELS | J30: Zand p/ m3
A31: materiaalverhouding per 1000 | C31: Aantal/m2 | D31: Bedrag | F31: materiaalverhouding per m2 | H31: Bedrag | L31: per m3
A33: waal | B33: 0.2 | C33: 100 | D33: ='Invoerblad tarieven'!G16 -> 416 | F33: Dik 45 mm | G33: 0.95 | H33: ='Invoerblad tarieven'!G23 -> 10.12 | J33: Zand | L33: ='Invoerblad tarieven'!G27 -> 14.75
A34: kei | B34: 0.2 | C34: 50 | D34: ='Invoerblad tarieven'!G17 -> 642 | F34: Dik 80 mm | G34: 0.05 | H34: ='Invoerblad tarieven'!G24 -> 15.18
A35: beton | B35: 0.6 | C35: 44 | D35: ='Invoerblad tarieven'!G20 -> 309
A36: Klinkers, per m2 | B36: =SUM(B33:B35) -> 1 | D36: =((B33*D33/1000*C33)+(B34*D34/1000*C34)+(B35*D35/1000*C35)) -> 22.8976 | F36: Tegels, gemiddeld | G36: =SUM(G33:G35) -> 1 | H36: =((G33*H33)+(G34*H34)) -> 10.373 | J36: Zand per m3 | L36: =L33 -> 14.75
A37: Magazijnopslag | B37: 0.15 | D37: =D36*B37 -> 3.43464 | F37: Magazijnopslag | G37: 0.15 | H37: =H36*G37 -> 1.55595 | J37: Magazijnopslag | K37: 0.15 | L37: =L36*K37 -> 2.2125
A38: Klinkers, incl. magaziinopslag, per m2 | D38: =+D37+D36 -> 26.33224 | F38: Tegels, incl. mag. opsl., p/m2 | H38: =+H37+H36 -> 11.92895 | J38: Zand per m3 incl. mag.opsl | L38: =+L37+L36 -> 16.9625
A41: Per m2 bestating herstel | C41: Breuk % | F41: Materiaalkosten 5% breuk en 5 cm zand aanvullen
A42: Klinkers | C42: 0.05 | D42: =ROUND(C42*D38,2) -> 1.32 | F42: Klinkers | G42: m2 | H42: =D42+D44 -> 2.17
A43: Tegels | C43: 0.05 | D43: =ROUND(C43*H38,2) -> 0.6 | F43: Tegels | G43: m2 | H43: =D43+D44 -> 1.45
A44: Zand | B44: 5 cm aanvullen | C44: 0.05 | D44: =ROUND(C44*L38,2) -> 0.85 | F44: Trottoirband | G44: m1 | H44: =H43 -> 1.45
F45: Opsluitband | G45: m1 | H45: =H44 -> 1.45
A47: kosten materiaal groen | D47: Zaad kosten | F47: gebruik | G47: kosten | H47: kosten
D48: per kg | F48: kg/are | G48: per are | H48: per m2
A49: ='Invoerblad tarieven'!B34 -> Bermmengsel | D49: ='Invoerblad tarieven'!G34 -> 7.2 | F49: 0.75 | G49: =D49*F49 -> 5.4 | H49: =G49/100 -> 0.054
A50: ='Invoerblad tarieven'!B35 -> Gazonmengsel | D50: ='Invoerblad tarieven'!G35 -> 7.95 | F50: 1.5 | G50: =D50*F50 -> 11.925 | H50: =G50/100 -> 0.11925
A51: Gemiddelde kosten berm/gazon (elk 50%) | H51: =(H50+H49)/2 -> 0.086625
A52: Magazijnopslag | B52: 0.15 | H52: =H51*0.15 -> 0.01299375
A53: Gemiddelde kosten berm/gazon graszaad | H53: =ROUND((H51+H52),2) -> 0.1
A55: c) kosten totaal
A56: kosten herstraten | C56: Eenheid | D56: Reparatie- | E56: Kosten | F56: materiaal | G56: Gemiddelde toeslag | J56: Uitvoeringskosten
A57: 1e herstel | D57: norm | E57: Uitvoering | F57: kosten per eenheid | G57: i.v.m. verrekening | J57: Incl. materiaal
A58: (A+B) | D58: ploeguur | E58: Ploegkosten | F58: (berekening | G58: GATVERGROTING (m.u.v.tarief D) | J58: incl. gatvergroting
D59: per eenheid | E59: per eenheid | F59: hierboven) | J59: per eenheid
A61: KLINKERS | B61: <15 m2 (lasgat) | C61: m2 | D61: 0.51 | E61: =ROUND(D61*$I$16,2) -> 25.85 | F61: =H42 -> 2.17 | G61: 0.2 | J61: =ROUND((E61+F61)*(1+G61),2) -> 33.62
A62: KLINKERS | B62: >15 m2 (geul) | C62: m2 | D62: 0.41 | E62: 20.78 | F62: =H42 -> 2.17 | G62: 0.2 | J62: =ROUND((E62+F62)*(1+G62),2) -> 27.54
A63: KLINKERS | B63: >100 m2 (geul) | C63: m2 | D63: 0.36 | E63: 18.25 | F63: =H42 -> 2.17 | G63: 0.2 | J63: 24.5
A64: TEGELS | B64: <15 m2 (lasgat) | C64: m2 | D64: 0.41 | E64: 20.78 | F64: =H43 -> 1.45 | G64: 0.2 | J64: 26.68
A65: TEGELS | B65: >15 m2 (geul) | C65: m2 | D65: 0.31 | E65: 15.71 | F65: =H43 -> 1.45 | G65: 0.2 | J65: 20.59
A66: TEGELS | B66: >100 m2 (geul) | C66: m2 | D66: 0.29 | E66: 14.7 | F66: =H43 -> 1.45 | G66: 0.2 | J66: 19.38
A67: TROTTOIRBAND | B67: (tegelmat.) | C67: m1 | D67: 0.22 | E67: 11.15 | F67: =H44 -> 1.45 | J67: 12.6
A68: OPSLUITBAND | B68: (tegelmat.) | C68: m1 | D68: 0.17 | E68: 8.62 | F68: =H44 -> 1.45 | J68: =ROUND((E68+F68)*(1+G68),2) -> 10.07
A69: ZAAI KLAAR MAKEN | B69: 100m2 berm, gazon | C69: 100m2 | D69: =1.59 -> 1.59 | E69: =D69*$F$26 -> 82.69013625
A70: INZAAIEN | B70: 100m2 berm, gazon | C70: 100m2 | D70: =0.945 -> 0.945 | E70: =D70*$F$26 -> 49.14602437
A71: Rijtijd/starttijd | B71: 19 min per 100 m2 | C71: 100m2 | D71: =19/60 -> 0.3166666667 | E71: =D71*$F$26 -> 16.46868542
A72: Gemiddeld berm/gazon zaaiklaarm+ zaaien | C72: 1m2 | E72: =ROUND((E70+E69+E71)/100,2) -> 1.48 | F72: =H53 -> 0.1 | G72: 0.5 | J72: =ROUND((E72+F72)*(1+G72),2) -> 2.37
A74: Bodemgesteldheid | B74: 5 categorieën
A75: Categorie | B75: Omschrijving
A76: 1 | B76: minder dan 50% slechte bodem
A77: 2 | B77: vanaf 50 tot 60% slechte bodem
A78: 3 | B78: vanaf 60 tot 70% slechte bodem
A79: 4 | B79: vanaf 70 tot 80% slechte bodem
A80: 5 | B80: vanaf 80% slechte bodem
A82: 2) ONDERHOUD | B82: na herstel, gedurende het 1e jaar, in % van de totale uitvoeringskosten, per m2
A83: Categorie bodemgesteldheid: | E83: 1 | F83: 2 | G83: 3 | H83: 4 | I83: 5
A84: Percentage slechte grond : | E84: <50% | F84: 50-60% | G84: 60-70% | H84: 70-80% | I84: >80%
A85: Omschrijving
A86: RIJWEGEN | B86: (klinkers, tegels) | E86: 0.08 | F86: 0.09 | G86: 0.12 | H86: 0.18 | I86: 0.2
A87: VOET-FIETSPADEN | B87: (tegels, klinkers) | E87: 0.05 | F87: 0.0575 | G87: 0.08 | H87: 0.1325 | I87: 0.15
A90: 3) DEGENERATIE | B90: De vergoeding voor versnelde degeneratie (levensduurverkorting) van het verhardingsoppervlak als gevolg van graafwerkzaamheden
B91: na herstel in % van de totale uitvoeringskosten, per m1 sleuf
A92: Categorie bodemgesteldheid: | E92: 1 | F92: 2 | G92: 3 | H92: 4 | I92: 5
A93: Percentage slechte grond : | E93: <50% | F93: 50-60% | G93: 60-70% | H93: 70-80% | I93: >80%
A94: Omschrijving
A95: KLINKERS | B95: < 15 m2 (per lasgat) | E95: 0.32 | F95: 0.45 | G95: 0.84 | H95: 1.29 | I95: 1.58
A96: KLINKERS | B96: > 15 m2 (per m1 geul) | E96: 0.13 | F96: 0.1825 | G96: 0.34 | H96: 0.6775 | I96: 0.79
A97: TEGELS | B97: < 15 m2 (per lasgat) | E97: 0 | F97: 0.04 | G97: 0.16 | H97: 0.46 | I97: 0.56
A98: TEGELS | B98: > 15 m2 (per m1 geul) | E98: 0 | F98: 0.01 | G98: 0.04 | H98: 0.49 | I98: 0.64
A100: Tariefgroep | B100: Omschrijving | F100: De gemeente berekent aan aanbieder / netbeheerder
A101: A | B101: Herstel en onderhoud, uitgevoerd door de gemeente | F101: UK | G101: OK | H101: DK | I101: BK
A102: B1 | B102: Herstel en onderhoud door aanbieder / netbeheerder | H102: DK | I102: BK
A103: B2 | B103: Herstel door aanbieder / netbeheerder, onderhoud door gemeente | G103: OK | H103: DK | I103: BK
A104: C | B104: Herstel door de gemeente voorafgaand aan gehele herbestrating *) | F104: UK (gereduceerd) | G104: OK | I104: BK
A105: C1 | B105: Herstel en onderhoud door de aanbieder voorafgaand aan gehele herbestrating *) | I105: BK
A106: C2 | B106: Herstel door de aanbieder en onderhoud door de gemeente voorafgaand aan gehele herbestrating *) | G106: OK | I106: BK
A107: D | B107: Overige tarieven (berm/gazon, asfalt, struiken) | F107: Afhankelijk tarief | I107: BK
A108: Onderhoudsperiode: | B108: De onderhoudsperiode is 12 maanden, onderhoud door gemeente of aanbieder/netbeheerder.
A109: Garantie: | B109: Indien herstel door aanbieder / netbeheerder kan de gemeente een beroep doen op garantie conform de RAW garantiebepaling gedurende de onderhoudsperiode.
A110: *) Tarieven C, C1, C2 | B110: De tarieven C, C1 en C2 zijn alleen van toepassing indien vooraf afgestemd en de aanbieder/netbeheerder maximaal 1 jaar voor de geplande uitvoering van de algehele herbestrating werkt. Reductie op UK door gemeente. Geen DK.
A111: Wijzigingen per 1-1-2018:
A112: - Deze tarieven kunnen ook voor netbeheerders, niet zijnde een aanbieder van een elektronisch communicatienet werk worden toegepast, in welk geval 'aanbieder' ook staat voor 'netbeheerder'.
A113: - Tarieven voor triottoir-, oplsluit/koprolband verplaatst van tarief D naar A, B1, B2, C, C1 en C2
A114: - Naast Tarief C (herstel vooruitlopend aan herbestrating) is toegevoegd C1 (bij herstel en onderhoud door aanbieder) en C2 (herstel door aanbieder en onderhoud door gemeente).
A115: Deze C-tarieven gelden alleen indien vooraf afgestemd en de aanbieder maximaal 1 jaar voor de geplande uitvoering van de algehele herbestrating werkt.
A116: - Bermen/gazon berekening herzien, er zijn nu 2 varianten: herstel door de gemeente en herstel door aanbieder/netbeheerder, tarief t/m 50m2 is vervallen
A117: - De tarieven voor troitoirbanden, oplslui/koprolbanden zijn verplaatst van tarief D naar A, B1, B2, C, C1 en C2, zodat deze beter meelopen in de verrekening.
A118: Wijzigingen per 1-1-2019:
A119: - Bij analyse van de tarieven voor bermen/gazon bleek dat er onvoldoende rekening mee was gehouden dat ca. 84% van de opbrekingen tot en met 15m2 zijn met een gemiddeld oppervlakte van 4 m2.
A120: Ingaande 1-1-2019 zijn er 2 tarieven: tarief tot en met 15m2 per opbreking (minimum tarief 15 x m2-tarief) en het tarief per m2 boven de 15m2
A121: Dit is opgelost door een rijtijd/starttijd van 19 minuten per 100m2 toe te voegen (+ 11%) én een minimumtarief van 15m2 in te voeren (gemiddeld per opbreking t/m 15m2 + 318%)

Sheet < 50% slechte bodem
A2: RICHTLIJN TARIEVEN (GRAAF)WERKZAAMHEDEN TELECOM | K2: Bijlage A1
I3: Tarievenblad | K3: jaar/versie: | L3: ='Invoerblad tarieven'!$G$3 -> 2023 v1
A5: 1. Gegevens gemeente:
A6: Bodemgesteldheid categorie: 1. | D6: Onderhoud | G6: Degeneratie | K6: Beheerskosten:
D7: factor | E7: rijweg | F7: voetpad | G7: Klinker: < 15 m2 | H7: Klinker: > 15 m2 | I7: Tegels: < 15 m2 | J7: Tegels: > 15 m2 | K7: algemeen
A9: minder dan 50% slechte bodem: | D9: 0 | E9: 0.08 | F9: 0.05 | G9: 0.32 | H9: 0.13 | I9: 0 | J9: 0 | K9: =6/100 -> 0.06
A10: 2. Overzicht kostenopbouw:
E11: Klinkers: | H11: Tegels: | K11: Trottoit- | L11: Opsluit- | M11: Berm en
E12: Rijweg | F12: =80/100 -> 0.8 | H12: Voetpad | I12: =95/100 -> 0.95 | K12: band | L12: band | M12: Gazon
E13: Voetpad | F13: =20/100 -> 0.2 | H13: Rijweg | I13: =5/100 -> 0.05
E14: <15 m2 | F14: >15 m2 | G14: >100 m2 | H14: <15 m2 | I14: >15 m2 | J14: >100 m2 | K14: Eenheid: m1 | L14: Eenheid: m1 | M14: Eenheid: m2
A15: 1. Uitvoering: | C15: per m2 | E15: =Moederblad!$J$61 -> 33.62 | F15: =Moederblad!$J$62 -> 27.54 | G15: =Moederblad!$J$63 -> 24.5 | H15: =Moederblad!$J$64 -> 26.68 | I15: =Moederblad!$J$65 -> 20.59 | J15: =Moederblad!$J$66 -> 19.38 | K15: =Moederblad!J67 -> 12.6 | L15: =Moederblad!J68 -> 10.07 | M15: =Moederblad!J72 -> 2.37
A16: 2. Onderhoud: | C16: per m2 | E16: =ROUND($F$12*($E$9*E15)+$F$13*($F$9*$E$15),2) -> 2.49 | F16: =ROUND($F$12*($E$9*$F$15)+$F$13*($F$9*$F$15),2) -> 2.04 | G16: =ROUND($F$12*($E$9*$G$15)+$F$13*($F$9*$G$15),2) -> 1.81 | H16: =ROUND($I$12*($F$9*$H$15)+$I$13*($E$9*$H$15),2) -> 1.37 | I16: =ROUND($I$12*($F$9*$I$15)+$I$13*($E$9*$I$15),2) -> 1.06 | J16: =ROUND($I$12*($F$9*$J$15)+$I$13*($E$9*$J$15),2) -> 1
A17: 3a. Degeneratie: | C17: per reparatie | E17: =ROUND(($G$9*$E$15)/1.185,2) -> 9.08 | H17: 0
A18: 3b. Degeneratie: | C18: per m1 sleuflengte | F18: =ROUND(($H$9*$F$15)/1.185,2) -> 3.02 | G18: =ROUND(($H$9*$G$15)/1.185,2) -> 2.69 | I18: =ROUND(($J$9*$I$15)/1.185,2) -> 0 | J18: 0
A19: 4. Beheerskosten: | C19: per m2 | E19: =ROUND($K$9*$E$15,2) -> 2.02 | F19: =ROUND($K$9*$F$15,2) -> 1.65 | G19: =ROUND($K$9*$G$15,2) -> 1.47 | H19: =ROUND($K$9*$H$15,2) -> 1.6 | I19: =ROUND($K$9*$I$15,2) -> 1.24 | J19: =ROUND($K$9*$J$15,2) -> 1.16 | K19: =ROUND($K$9*$K$15,2) -> 0.76 | L19: =ROUND($K$9*$L$15,2) -> 0.6 | M19: =ROUND($K$9*$M$15,2) -> 0.14
A20: 3. Tarieven:
A21: Tarief: A. | B21: Herstel, onderhoud, uitgevoerd door de gemeente inclusief beheerskosten | H21: Degeneratie: | K21: Beheerskosten:
C23: A1 | D23: klinkers | E23: < 15 m2 | F23: =$E$15+$E$16 -> 36.11 | G23: per m2 | H23: + per reparatie | J23: =$E$17 -> 9.08 | K23: < 15 m2 | L23: =+$E$19 -> 2.02 | M23: per m2
C24: A2 | D24: tegels | E24: < 15 m2 | F24: =$H$15+$H$16 -> 28.05 | G24: per m2 | H24: + per reparatie | J24: =$H$17 -> 0 | K24: < 15 m2 | L24: =+$H$19 -> 1.6 | M24: per m2
C25: A3 | D25: klinkers | E25: > 15 m2 | F25: =$F$15+$F$16 -> 29.58 | G25: per m2 | H25: + per m1 sleuflengte | J25: =$F$18 -> 3.02 | K25: > 15 m2 | L25: =+$F$19 -> 1.65 | M25: per m2
C26: A4 | D26: tegels | E26: > 15 m2 | F26: =$I$15+$I$16 -> 21.65 | G26: per m2 | H26: + per m1 sleuflengte | J26: =$I$18 -> 0 | K26: > 15 m2 | L26: =+$I$19 -> 1.24 | M26: per m2
C27: A5 | D27: klinkers | E27: > 100 m2 | F27: =$G$15+$G$16 -> 26.31 | G27: per m2 | H27: + per m1 sleuflengte | J27: =$G$18 -> 2.69 | K27: > 100 m2 | L27: =+$G$19 -> 1.47 | M27: per m2
C28: A6 | D28: tegels | E28: > 100 m2 | F28: =$J$15+$J$16 -> 20.38 | G28: per m2 | H28: + per m1 sleuflengte | J28: =$J$18 -> 0 | K28: > 100 m2 | L28: =+$J$19 -> 1.16 | M28: per m2
C29: A7 | D29: trottoirband | F29: =K15 -> 12.6 | G29: per m1 | H29: n.v.t | J29: 0 | L29: =$K$19 -> 0.76 | M29: per m1
C30: A8 | D30: opsluit/koprolband | F30: =+L15 -> 10.07 | G30: per m1 | H30: n.v.t. | J30: 0 | L30: =$L$19 -> 0.6 | M30: per m1
A32: Tarief: B1. | B32: Herstel en onderhoud door de aanbieder ( 12 maanden garantie) | H32: Degeneratie: | K32: Beheerskosten:
C34: B1 | D34: klinkers | E34: < 15 m2 | F34: 0 | G34: per m2 | H34: + per reparatie | J34: =$E$17 -> 9.08 | K34: < 15 m2 | L34: =+$E$19 -> 2.02 | M34: per m2
C35: B2 | D35: tegels | E35: < 15 m2 | F35: 0 | G35: per m2 | H35: + per reparatie | J35: =$H$17 -> 0 | K35: < 15 m2 | L35: =+$H$19 -> 1.6 | M35: per m2
C36: B3 | D36: klinkers | E36: > 15 m2 | F36: 0 | G36: per m2 | H36: + per m1 sleuflengte | J36: =$F$18 -> 3.02 | K36: > 15 m2 | L36: =+$F$19 -> 1.65 | M36: per m2
C37: B4 | D37: tegels | E37: > 15 m2 | F37: 0 | G37: per m2 | H37: + per m1 sleuflengte | J37: =$I$18 -> 0 | K37: > 15 m2 | L37: =+$I$19 -> 1.24 | M37: per m2
C38: B7 | D38: trottoirband | F38: 0 | G38: per m1 | H38: n.v.t | J38: 0 | L38: =$K$19 -> 0.76 | M38: per m1
C39: B8 | D39: opsluit/koprolband | F39: 0 | G39: per m1 | H39: n.v.t. | J39: 0 | L39: =$L$19 -> 0.6 | M39: per m1
A41: Tarief: B2. | B41: Herstel door de aanbieder (12 mnd.garantie) en onderhoud door de gemeente | H41: Degeneratie: | K41: Beheerskosten:
C43: B1 | D43: klinkers | E43: < 15 m2 | F43: =$E$16 -> 2.49 | G43: per m2 | H43: + per reparatie | J43: =$E$17 -> 9.08 | K43: < 15 m2 | L43: =+$E$19 -> 2.02 | M43: per m2
C44: B2 | D44: tegels | E44: < 15 m2 | F44: =$H$16 -> 1.37 | G44: per m2 | H44: + per reparatie | J44: =$H$17 -> 0 | K44: < 15 m2 | L44: =+$H$19 -> 1.6 | M44: per m2
C45: B3 | D45: klinkers | E45: > 15 m2 | F45: =$F$16 -> 2.04 | G45: per m2 | H45: + per m1 sleuflengte | J45: =$F$18 -> 3.02 | K45: > 15 m2 | L45: =+$F$19 -> 1.65 | M45: per m2
C46: B4 | D46: tegels | E46: > 15 m2 | F46: =$I$16 -> 1.06 | G46: per m2 | H46: + per m1 sleuflengte | J46: =$I$18 -> 0 | K46: > 15 m2 | L46: =+$I$19 -> 1.24 | M46: per m2
C47: B7 | D47: trottoirband | F47: 0 | G47: per m1 | H47: n.v.t | J47: 0 | L47: =$K$19 -> 0.76 | M47: per m1
C48: B8 | D48: opsluit/koprolband | F48: 0 | G48: per m1 | H48: n.v.t. | J48: 0 | L48: =$L$19 -> 0.6 | M48: per m1
A50: Tarief: C. | B50: Herstel door de gemeente voorafgaand aan gehele herbestrating. | H50: Beheerskosten:
C52: C1 | D52: klinkers | E52: < 15 m2 | F52: =($E$15/2)/1.2+$E$16 -> 16.49833333 | G52: per m2 | H52: < 15 m2 | I52: =+$E$19 -> 2.02 | J52: per m2
C53: C2 | D53: tegels | E53: < 15 m2 | F53: =($H$15/2)/1.2+$H$16 -> 12.48666667 | G53: per m2 | H53: < 15 m2 | I53: =+$H$19 -> 1.6 | J53: per m2
C54: C3 | D54: klinkers | E54: > 15 m2 | F54: =($F$15/2)/1.2+$F$16 -> 13.515 | G54: per m2 | H54: > 15 m2 | I54: =+$F$19 -> 1.65 | J54: per m2
C55: C4 | D55: tegels | E55: > 15 m2 | F55: =($I$15/2)/1.2+$I$16 -> 9.639166667 | G55: per m2 | H55: > 15 m2 | I55: =+$I$19 -> 1.24 | J55: per m2
C56: C7 | D56: trottoirband | F56: =($K$15/2)/1.2 -> 5.25 | G56: per m1 | I56: =$K$19 -> 0.76 | J56: per m1
C57: C8 | D57: opsluit/koprolband | F57: =($L$15/2)/1.2 -> 4.195833333 | G57: per m1 | I57: =$L$19 -> 0.6 | J57: per m1
A59: Tarief: C1 | B59: Herstel en onderhoud door de aanbieder ( 12 maanden garantie) voorafgaand aan gehele herbestrating. | H59: Beheerskosten:
C61: C1 | D61: klinkers | E61: < 15 m2 | F61: 0 | G61: per m2 | H61: < 15 m2 | I61: =+$E$19 -> 2.02 | J61: per m2
C62: C2 | D62: tegels | E62: < 15 m2 | F62: 0 | G62: per m2 | H62: < 15 m2 | I62: =+$H$19 -> 1.6 | J62: per m2
C63: C3 | D63: klinkers | E63: > 15 m2 | F63: 0 | G63: per m2 | H63: > 15 m2 | I63: =+$F$19 -> 1.65 | J63: per m2
C64: C4 | D64: tegels | E64: > 15 m2 | F64: 0 | G64: per m2 | H64: > 15 m2 | I64: =+$I$19 -> 1.24 | J64: per m2
C65: C7 | D65: trottoirband | F65: 0 | G65: per m1 | I65: =$K$19 -> 0.76 | J65: per m1
C66: C8 | D66: opsluit/koprolband | F66: 0 | G66: per m1 | I66: =$L$19 -> 0.6 | J66: per m1
A68: Tarief: C2 | B68: Herstel door de aanbieder (12 mnd.garantie) en onderhoud door de gemeente voorafgaand aan gehele herbestrating. | H68: Beheerskosten:
C70: C1 | D70: klinkers | E70: < 15 m2 | F70: =($E$16) -> 2.49 | G70: per m2 | H70: < 15 m2 | I70: =+$E$19 -> 2.02 | J70: per m2
C71: C2 | D71: tegels | E71: < 15 m2 | F71: =$H$16 -> 1.37 | G71: per m2 | H71: < 15 m2 | I71: =+$H$19 -> 1.6 | J71: per m2
C72: C3 | D72: klinkers | E72: > 15 m2 | F72: =$F$16 -> 2.04 | G72: per m2 | H72: > 15 m2 | I72: =+$F$19 -> 1.65 | J72: per m2
C73: C4 | D73: tegels | E73: > 15 m2 | F73: =$I$16 -> 1.06 | G73: per m2 | H73: > 15 m2 | I73: =+$I$19 -> 1.24 | J73: per m2
C74: C7 | D74: trottoirband | F74: 0 | G74: per m1 | I74: =$K$19 -> 0.76 | J74: per m1
C75: C8 | D75: opsluit/koprolband | F75: 0 | G75: per m1 | I75: =$L$19 -> 0.6 | J75: per m1
A77: Tarief: D. | B77: Overige tarieven, herstel door gemeente of netbeheerder zoals aangegeven | I77: Beheerskosten
C79: D1 | D79: berm / gazon, herstel gemeente | G79: < 15 m2 | H79: =M15*15 -> 35.55 | I79: =M19*15 -> 2.1 | J79: per opbr.
C80: D2 | D80: berm / gazon, herstel aanbieder | G80: < 15 m2 | H80: 0 | I80: =M19*15 -> 2.1 | J80: per opbr.
C81: D3 | D81: berm / gazon, herstel gemeente | G81: > 15 m2 | H81: =M15 -> 2.37 | I81: =M19 -> 0.14 | J81: per m2
C82: D4 | D82: berm / gazon, herstel aanbieder | G82: > 15 m2 | H82: 0 | I82: =M19 -> 0.14 | J82: per m2
C83: D5 | D83: bomen en struiken | H83: werkelijke kosten
C84: D6 | D84: asfalt | H84: werkelijke kosten
A86: BTW is niet verschuldigd. Zie: Besluit van de Staatsecretaris van Financien dd 19 februari 2004, nr. CPP2003/3098M.
A87: Het tarief oppervlak (m2) straatwerk of berm wordt bepaaldt door vermeningvuldiging van lengte x breedte van de sleuf of lasgat ( gatvergroting zit in tarief)
A88: Per project is het aantal m2 op de straatwerkbon bepalend voor de toepassing van tarief <15 m2 of > 15 m2. Klinkers en tegels mogen niet bijelkaar worden opgeteld
A89: Meerdere kleine opbrekingen binnen 10 meter, aan één wegkant, worden aangemerkt als één reparatie.
A91: Wijzigingen per 1-1-2018:
A92: - Deze tarieven kunnen ook voor netbeheerders, niet zijnde een aanbieder van een elektronisch communicatienet werk worden toegepast, in welk geval 'aanbieder' ook staat voor 'netbeheerder';
A93: - Tarieven voor triottoir-, oplsluit/koprolband verplaatst van tarief D naar A, B1, B2, C, C1 en C2;
A94: - Naast Tarief C (herstel vooruitlopend aan herbestrating) is toegevoegd C1 (bij herstel en onderhoud door aanbieder) en C2 (herstel door aanbieder en onderhoud door gemeente). Deze C-tarieven gelden alleen indien vooraf afgestemd en de aanbieder maximaal 1 jaar voor de geplande uitvoering van de algehele herbestrating werkt.
A95: - Toegevoegd is een richtlijn voor het hanteren van de tarieven indien 'van band tot band' bestraat wordt (tarieven A, B1 en B2 delen door 1,2 en geen degeneratiekosten berekenen). Er is afgezien van het formaliseren van aparte tarieven voor deze gevallen.
A96: - Bermen/gazon: uitvoeringskosten per m2 herberekend, tarief t/m 50m2 vervallen (alleen nog per m2), 2 varianten: herstel door gemeente en herstel door netbeheerder.
A97: Wijzigingen per 1-1-2019:
A98: - Nu 2 tarieven voor bermen/gazon: tarief tot en met 15m2 per opbreking (minimum tarief 15 x m2-tarief) en het tarief per m2 boven de 15m2.

Sheet 50-60% slechte bodem
A2: RICHTLIJN TARIEVEN (GRAAF)WERKZAAMHEDEN TELECOM | K2: Bijlage A2
I3: Tarievenblad | K3: jaar/versie: | L3: ='Invoerblad tarieven'!$G$3 -> 2023 v1
A5: 1. Gegevens gemeente:
A6: Bodemgesteldheid categorie: 2. | D6: Onderhoud | G6: Degeneratie | K6: Beheerskosten:
D7: factor | E7: rijweg | F7: voetpad | G7: Klinker: < 15 m2 | H7: Klinker: > 15 m2 | I7: Tegels: < 15 m2 | J7: Tegels: > 15 m2 | K7: algemeen
A9: vanaf 50% tot 60% slechte bodem | D9: 0.25 | E9: 0.09 | F9: 0.0575 | G9: 0.45 | H9: 0.1825 | I9: 0.04 | J9: 0.01 | K9: =6/100 -> 0.06
A10: 2. Overzicht kostenopbouw:
E11: Klinkers: | H11: Tegels: | K11: Trottoit- | L11: Opsluit- | M11: Berm en
E12: Rijweg | F12: =80/100 -> 0.8 | H12: Voetpad | I12: =95/100 -> 0.95 | K12: band | L12: band | M12: Gazon
E13: Voetpad | F13: =20/100 -> 0.2 | H13: Rijweg | I13: =5/100 -> 0.05
E14: <15 m2 | F14: >15 m2 | G14: >100 m2 | H14: <15 m2 | I14: >15 m2 | J14: >100 m2 | K14: Eenheid: m1 | L14: Eenheid: m1 | M14: Eenheid: m2
A15: 1. Uitvoering: | C15: per m2 | E15: =Moederblad!$J$61 -> 33.62 | F15: =Moederblad!$J$62 -> 27.54 | G15: =Moederblad!$J$63 -> 24.5 | H15: =Moederblad!$J$64 -> 26.68 | I15: =Moederblad!$J$65 -> 20.59 | J15: =Moederblad!$J$66 -> 19.38 | K15: =Moederblad!J67 -> 12.6 | L15: =Moederblad!J68 -> 10.07 | M15: =Moederblad!J72 -> 2.37
A16: 2. Onderhoud: | C16: per m2 | E16: =ROUND($F$12*($E$9*E15)+$F$13*($F$9*$E$15),2) -> 2.81 | F16: =ROUND($F$12*($E$9*$F$15)+$F$13*($F$9*$F$15),2) -> 2.3 | G16: =ROUND($F$12*($E$9*$G$15)+$F$13*($F$9*$G$15),2) -> 2.05 | H16: =ROUND($I$12*($F$9*$H$15)+$I$13*($E$9*$H$15),2) -> 1.58 | I16: =ROUND($I$12*($F$9*$I$15)+$I$13*($E$9*$I$15),2) -> 1.22 | J16: =ROUND($I$12*($F$9*$J$15)+$I$13*($E$9*$J$15),2) -> 1.15
A17: 3a. Degeneratie: | C17: per reparatie | E17: =ROUND(($G$9*$E$15)/1.185,2) -> 12.77 | H17: =ROUND(($I$9*$H$15)/1.185,2) -> 0.9
A18: 3b. Degeneratie: | C18: per m1 sleuflengte | F18: =ROUND(($H$9*$F$15)/1.185,2) -> 4.24 | G18: =ROUND(($H$9*$G$15)/1.185,2) -> 3.77 | I18: =ROUND(($J$9*$I$15)/1.185,2) -> 0.17 | J18: =ROUND(($J$9*$J$15)/1.185,2) -> 0.16
A19: 4. Beheerskosten: | C19: per m2 | E19: =ROUND($K$9*$E$15,2) -> 2.02 | F19: =ROUND($K$9*$F$15,2) -> 1.65 | G19: =ROUND($K$9*$G$15,2) -> 1.47 | H19: =ROUND($K$9*$H$15,2) -> 1.6 | I19: =ROUND($K$9*$I$15,2) -> 1.24 | J19: =ROUND($K$9*$J$15,2) -> 1.16 | K19: =ROUND($K$9*$K$15,2) -> 0.76 | L19: =ROUND($K$9*$L$15,2) -> 0.6 | M19: =ROUND($K$9*$M$15,2) -> 0.14
A20: 3. Tarieven:
A21: Tarief: A. | B21: Herstel, onderhoud, uitgevoerd door de gemeente inclusief beheerskosten | H21: Degeneratie: | K21: Beheerskosten:
C23: A1 | D23: klinkers | E23: < 15 m2 | F23: =$E$15+$E$16 -> 36.43 | G23: per m2 | H23: + per reparatie | J23: =$E$17 -> 12.77 | K23: < 15 m2 | L23: =+$E$19 -> 2.02 | M23: per m2
C24: A2 | D24: tegels | E24: < 15 m2 | F24: =$H$15+$H$16 -> 28.26 | G24: per m2 | H24: + per reparatie | J24: =$H$17 -> 0.9 | K24: < 15 m2 | L24: =+$H$19 -> 1.6 | M24: per m2
C25: A3 | D25: klinkers | E25: > 15 m2 | F25: =$F$15+$F$16 -> 29.84 | G25: per m2 | H25: + per m1 sleuflengte | J25: =$F$18 -> 4.24 | K25: > 15 m2 | L25: =+$F$19 -> 1.65 | M25: per m2
C26: A4 | D26: tegels | E26: > 15 m2 | F26: =$I$15+$I$16 -> 21.81 | G26: per m2 | H26: + per m1 sleuflengte | J26: =$I$18 -> 0.17 | K26: > 15 m2 | L26: =+$I$19 -> 1.24 | M26: per m2
C27: A5 | D27: klinkers | E27: > 100 m2 | F27: =$G$15+$G$16 -> 26.55 | G27: per m2 | H27: + per m1 sleuflengte | J27: =$G$18 -> 3.77 | K27: > 100 m2 | L27: =+$G$19 -> 1.47 | M27: per m2
C28: A6 | D28: tegels | E28: > 100 m2 | F28: =$J$15+$J$16 -> 20.53 | G28: per m2 | H28: + per m1 sleuflengte | J28: =$J$18 -> 0.16 | K28: > 100 m2 | L28: =+$J$19 -> 1.16 | M28: per m2
C29: A7 | D29: trottoirband | F29: =K15 -> 12.6 | G29: per m1 | H29: n.v.t | J29: 0 | L29: =$K$19 -> 0.76 | M29: per m1
C30: A8 | D30: opsluit/koprolband | F30: =+L15 -> 10.07 | G30: per m1 | H30: n.v.t. | J30: 0 | L30: =$L$19 -> 0.6 | M30: per m1
A32: Tarief: B1. | B32: Herstel en onderhoud door de aanbieder ( 12 maanden garantie) | H32: Degeneratie: | K32: Beheerskosten:
C34: B1 | D34: klinkers | E34: < 15 m2 | F34: 0 | G34: per m2 | H34: + per reparatie | J34: =$E$17 -> 12.77 | K34: < 15 m2 | L34: =+$E$19 -> 2.02 | M34: per m2
C35: B2 | D35: tegels | E35: < 15 m2 | F35: 0 | G35: per m2 | H35: + per reparatie | J35: =$H$17 -> 0.9 | K35: < 15 m2 | L35: =+$H$19 -> 1.6 | M35: per m2
C36: B3 | D36: klinkers | E36: > 15 m2 | F36: 0 | G36: per m2 | H36: + per m1 sleuflengte | J36: =$F$18 -> 4.24 | K36: > 15 m2 | L36: =+$F$19 -> 1.65 | M36: per m2
C37: B4 | D37: tegels | E37: > 15 m2 | F37: 0 | G37: per m2 | H37: + per m1 sleuflengte | J37: =$I$18 -> 0.17 | K37: > 15 m2 | L37: =+$I$19 -> 1.24 | M37: per m2
C38: B7 | D38: trottoirband | F38: 0 | G38: per m1 | H38: n.v.t | J38: 0 | L38: =$K$19 -> 0.76 | M38: per m1
C39: B8 | D39: opsluit/koprolband | F39: 0 | G39: per m1 | H39: n.v.t. | J39: 0 | L39: =$L$19 -> 0.6 | M39: per m1
A41: Tarief: B2. | B41: Herstel door de aanbieder (12 mnd.garantie) en onderhoud door de gemeente | H41: Degeneratie: | K41: Beheerskosten:
C43: B1 | D43: klinkers | E43: < 15 m2 | F43: =$E$16 -> 2.81 | G43: per m2 | H43: + per reparatie | J43: =$E$17 -> 12.77 | K43: < 15 m2 | L43: =+$E$19 -> 2.02 | M43: per m2
C44: B2 | D44: tegels | E44: < 15 m2 | F44: =$H$16 -> 1.58 | G44: per m2 | H44: + per reparatie | J44: =$H$17 -> 0.9 | K44: < 15 m2 | L44: =+$H$19 -> 1.6 | M44: per m2
C45: B3 | D45: klinkers | E45: > 15 m2 | F45: =$F$16 -> 2.3 | G45: per m2 | H45: + per m1 sleuflengte | J45: =$F$18 -> 4.24 | K45: > 15 m2 | L45: =+$F$19 -> 1.65 | M45: per m2
C46: B4 | D46: tegels | E46: > 15 m2 | F46: =$I$16 -> 1.22 | G46: per m2 | H46: + per m1 sleuflengte | J46: =$I$18 -> 0.17 | K46: > 15 m2 | L46: =+$I$19 -> 1.24 | M46: per m2
C47: B7 | D47: trottoirband | F47: 0 | G47: per m1 | H47: n.v.t | J47: 0 | L47: =$K$19 -> 0.76 | M47: per m1
C48: B8 | D48: opsluit/koprolband | F48: 0 | G48: per m1 | H48: n.v.t. | J48: 0 | L48: =$L$19 -> 0.6 | M48: per m1
A50: Tarief: C. | B50: Herstel door de gemeente voorafgaand aan gehele herbestrating. | H50: Beheerskosten:
C52: C1 | D52: klinkers | E52: < 15 m2 | F52: =($E$15/2)/1.2+$E$16 -> 16.81833333 | G52: per m2 | H52: < 15 m2 | I52: =+$E$19 -> 2.02 | J52: per m2
C53: C2 | D53: tegels | E53: < 15 m2 | F53: =($H$15/2)/1.2+$H$16 -> 12.69666667 | G53: per m2 | H53: < 15 m2 | I53: =+$H$19 -> 1.6 | J53: per m2
C54: C3 | D54: klinkers | E54: > 15 m2 | F54: =($F$15/2)/1.2+$F$16 -> 13.775 | G54: per m2 | H54: > 15 m2 | I54: =+$F$19 -> 1.65 | J54: per m2
C55: C4 | D55: tegels | E55: > 15 m2 | F55: =($I$15/2)/1.2+$I$16 -> 9.799166667 | G55: per m2 | H55: > 15 m2 | I55: =+$I$19 -> 1.24 | J55: per m2
C56: C7 | D56: trottoirband | F56: =($K$15/2)/1.2 -> 5.25 | G56: per m1 | I56: =$K$19 -> 0.76 | J56: per m1
C57: C8 | D57: opsluit/koprolband | F57: =($L$15/2)/1.2 -> 4.195833333 | G57: per m1 | I57: =$L$19 -> 0.6 | J57: per m1
A59: Tarief: C1 | B59: Herstel en onderhoud door de aanbieder ( 12 maanden garantie) voorafgaand aan gehele herbestrating. | H59: Beheerskosten:
C61: C1 | D61: klinkers | E61: < 15 m2 | F61: 0 | G61: per m2 | H61: < 15 m2 | I61: =+$E$19 -> 2.02 | J61: per m2
C62: C2 | D62: tegels | E62: < 15 m2 | F62: 0 | G62: per m2 | H62: < 15 m2 | I62: =+$H$19 -> 1.6 | J62: per m2
C63: C3 | D63: klinkers | E63: > 15 m2 | F63: 0 | G63: per m2 | H63: > 15 m2 | I63: =+$F$19 -> 1.65 | J63: per m2
C64: C4 | D64: tegels | E64: > 15 m2 | F64: 0 | G64: per m2 | H64: > 15 m2 | I64: =+$I$19 -> 1.24 | J64: per m2
C65: C7 | D65: trottoirband | F65: 0 | G65: per m1 | I65: =$K$19 -> 0.76 | J65: per m1
C66: C8 | D66: opsluit/koprolband | F66: 0 | G66: per m1 | I66: =$L$19 -> 0.6 | J66: per m1
A68: Tarief: C2 | B68: Herstel door de aanbieder (12 mnd.garantie) en onderhoud door de gemeente voorafgaand aan gehele herbestrating. | H68: Beheerskosten:
C70: C1 | D70: klinkers | E70: < 15 m2 | F70: =($E$16) -> 2.81 | G70: per m2 | H70: < 15 m2 | I70: =+$E$19 -> 2.02 | J70: per m2
C71: C2 | D71: tegels | E71: < 15 m2 | F71: =$H$16 -> 1.58 | G71: per m2 | H71: < 15 m2 | I71: =+$H$19 -> 1.6 | J71: per m2
C72: C3 | D72: klinkers | E72: > 15 m2 | F72: =$F$16 -> 2.3 | G72: per m2 | H72: > 15 m2 | I72: =+$F$19 -> 1.65 | J72: per m2
C73: C4 | D73: tegels | E73: > 15 m2 | F73: =$I$16 -> 1.22 | G73: per m2 | H73: > 15 m2 | I73: =+$I$19 -> 1.24 | J73: per m2
C74: C7 | D74: trottoirband | F74: 0 | G74: per m1 | I74: =$K$19 -> 0.76 | J74: per m1
C75: C8 | D75: opsluit/koprolband | F75: 0 | G75: per m1 | I75: =$L$19 -> 0.6 | J75: per m1
A77: Tarief: D. | B77: Overige tarieven, herstel door gemeente of netbeheerder zoals aangegeven | I77: Beheerskosten
C79: D1 | D79: berm / gazon, herstel gemeente | G79: < 15 m2 | H79: =M15*15 -> 35.55 | I79: =M19*15 -> 2.1 | J79: per opbr.
C80: D2 | D80: berm / gazon, herstel aanbieder | G80: < 15 m2 | H80: 0 | I80: =M19*15 -> 2.1 | J80: per opbr.
C81: D3 | D81: berm / gazon, herstel gemeente | G81: > 15 m2 | H81: =M15 -> 2.37 | I81: =M19 -> 0.14 | J81: per m2
C82: D4 | D82: berm / gazon, herstel aanbieder | G82: > 15 m2 | H82: 0 | I82: =M19 -> 0.14 | J82: per m2
C83: D5 | D83: bomen en struiken | H83: werkelijke kosten
C84: D6 | D84: asfalt | H84: werkelijke kosten
A86: BTW is niet verschuldigd. Zie: Besluit van de Staatsecretaris van Financien dd 19 februari 2004, nr. CPP2003/3098M.
A87: Het tarief oppervlak (m2) straatwerk of berm wordt bepaaldt door vermeningvuldiging van lengte x breedte van de sleuf of lasgat ( gatvergroting zit in tarief)
A88: Per project is het aantal m2 op de straatwerkbon bepalend voor de toepassing van tarief <15 m2 of > 15 m2. Klinkers en tegels mogen niet bijelkaar worden opgeteld
A89: Meerdere kleine opbrekingen binnen 10 meter, aan één wegkant, worden aangemerkt als één reparatie.
A91: Wijzigingen per 1-1-2018:
A92: - Deze tarieven kunnen ook voor netbeheerders, niet zijnde een aanbieder van een elektronisch communicatienet werk worden toegepast, in welk geval 'aanbieder' ook staat voor 'netbeheerder';
A93: - Tarieven voor triottoir-, oplsluit/koprolband verplaatst van tarief D naar A, B1, B2, C, C1 en C2;
A94: - Naast Tarief C (herstel vooruitlopend aan herbestrating) is toegevoegd C1 (bij herstel en onderhoud door aanbieder) en C2 (herstel door aanbieder en onderhoud door gemeente). Deze C-tarieven gelden alleen indien vooraf afgestemd en de aanbieder maximaal 1 jaar voor de geplande uitvoering van de algehele herbestrating werkt.
A95: - Toegevoegd is een richtlijn voor het hanteren van de tarieven indien 'van band tot band' bestraat wordt (tarieven A, B1 en B2 delen door 1,2 en geen degeneratiekosten berekenen). Er is afgezien van het formaliseren van aparte tarieven voor deze gevallen.
A96: - Bermen/gazon: uitvoeringskosten per m2 herberekend, tarief t/m 50m2 vervallen (alleen nog per m2), 2 varianten: herstel door gemeente en herstel door netbeheerder.
A97: Wijzigingen per 1-1-2019:
A98: - Nu 2 tarieven voor bermen/gazon: tarief tot en met 15m2 per opbreking (minimum tarief 15 x m2-tarief) en het tarief per m2 boven de 15m2.

Sheet 60-70% slechte bodem
A2: RICHTLIJN TARIEVEN (GRAAF)WERKZAAMHEDEN TELECOM | K2: Bijlage A3
I3: Tarievenblad | K3: jaar/versie: | L3: ='Invoerblad tarieven'!$G$3 -> 2023 v1
A5: 1. Gegevens gemeente:
A6: Bodemgesteldheid categorie: 3. | D6: Onderhoud | G6: Degeneratie | K6: Beheerskosten:
D7: factor | E7: rijweg | F7: voetpad | G7: Klinker: < 15 m2 | H7: Klinker: > 15 m2 | I7: Tegels: < 15 m2 | J7: Tegels: > 15 m2 | K7: algemeen
A9: vanaf 60% tot 70% slechte bodem | D9: 0.5 | E9: 0.12 | F9: 0.08 | G9: 0.84 | H9: 0.34 | I9: 0.16 | J9: 0.04 | K9: =6/100 -> 0.06
A10: 2. Overzicht kostenopbouw:
E11: Klinkers: | H11: Tegels: | K11: Trottoit- | L11: Opsluit- | M11: Berm en
E12: Rijweg | F12: =80/100 -> 0.8 | H12: Voetpad | I12: =95/100 -> 0.95 | K12: band | L12: band | M12: Gazon
E13: Voetpad | F13: =20/100 -> 0.2 | H13: Rijweg | I13: =5/100 -> 0.05
E14: <15 m2 | F14: >15 m2 | G14: >100 m2 | H14: <15 m2 | I14: >15 m2 | J14: >100 m2 | K14: Eenheid: m1 | L14: Eenheid: m1 | M14: Eenheid: m2
A15: 1. Uitvoering: | C15: per m2 | E15: =Moederblad!$J$61 -> 33.62 | F15: =Moederblad!$J$62 -> 27.54 | G15: =Moederblad!$J$63 -> 24.5 | H15: =Moederblad!$J$64 -> 26.68 | I15: =Moederblad!$J$65 -> 20.59 | J15: =Moederblad!$J$66 -> 19.38 | K15: =Moederblad!J67 -> 12.6 | L15: =Moederblad!J68 -> 10.07 | M15: =Moederblad!J72 -> 2.37
A16: 2. Onderhoud: | C16: per m2 | E16: =ROUND($F$12*($E$9*E15)+$F$13*($F$9*$E$15),2) -> 3.77 | F16: =ROUND($F$12*($E$9*$F$15)+$F$13*($F$9*$F$15),2) -> 3.08 | G16: =ROUND($F$12*($E$9*$G$15)+$F$13*($F$9*$G$15),2) -> 2.74 | H16: =ROUND($I$12*($F$9*$H$15)+$I$13*($E$9*$H$15),2) -> 2.19 | I16: =ROUND($I$12*($F$9*$I$15)+$I$13*($E$9*$I$15),2) -> 1.69 | J16: =ROUND($I$12*($F$9*$J$15)+$I$13*($E$9*$J$15),2) -> 1.59
A17: 3a. Degeneratie: | C17: per reparatie | E17: =ROUND(($G$9*$E$15)/1.185,2) -> 23.83 | H17: =ROUND(($I$9*$H$15)/1.185,2) -> 3.6
A18: 3b. Degeneratie: | C18: per m1 sleuflengte | F18: =ROUND(($H$9*$F$15)/1.185,2) -> 7.9 | G18: =ROUND(($H$9*$G$15)/1.185,2) -> 7.03 | I18: =ROUND(($J$9*$I$15)/1.185,2) -> 0.7 | J18: =ROUND(($J$9*$J$15)/1.185,2) -> 0.65
A19: 4. Beheerskosten: | C19: per m2 | E19: =ROUND($K$9*$E$15,2) -> 2.02 | F19: =ROUND($K$9*$F$15,2) -> 1.65 | G19: =ROUND($K$9*$G$15,2) -> 1.47 | H19: =ROUND($K$9*$H$15,2) -> 1.6 | I19: =ROUND($K$9*$I$15,2) -> 1.24 | J19: =ROUND($K$9*$J$15,2) -> 1.16 | K19: =ROUND($K$9*$K$15,2) -> 0.76 | L19: =ROUND($K$9*$L$15,2) -> 0.6 | M19: =ROUND($K$9*$M$15,2) -> 0.14
A20: 3. Tarieven:
A21: Tarief: A. | B21: Herstel, onderhoud, uitgevoerd door de gemeente inclusief beheerskosten | H21: Degeneratie: | K21: Beheerskosten:
C23: A1 | D23: klinkers | E23: < 15 m2 | F23: =$E$15+$E$16 -> 37.39 | G23: per m2 | H23: + per reparatie | J23: =$E$17 -> 23.83 | K23: < 15 m2 | L23: =+$E$19 -> 2.02 | M23: per m2
C24: A2 | D24: tegels | E24: < 15 m2 | F24: =$H$15+$H$16 -> 28.87 | G24: per m2 | H24: + per reparatie | J24: =$H$17 -> 3.6 | K24: < 15 m2 | L24: =+$H$19 -> 1.6 | M24: per m2
C25: A3 | D25: klinkers | E25: > 15 m2 | F25: =$F$15+$F$16 -> 30.62 | G25: per m2 | H25: + per m1 sleuflengte | J25: =$F$18 -> 7.9 | K25: > 15 m2 | L25: =+$F$19 -> 1.65 | M25: per m2
C26: A4 | D26: tegels | E26: > 15 m2 | F26: =$I$15+$I$16 -> 22.28 | G26: per m2 | H26: + per m1 sleuflengte | J26: =$I$18 -> 0.7 | K26: > 15 m2 | L26: =+$I$19 -> 1.24 | M26: per m2
C27: A5 | D27: klinkers | E27: > 100 m2 | F27: =$G$15+$G$16 -> 27.24 | G27: per m2 | H27: + per m1 sleuflengte | J27: =$G$18 -> 7.03 | K27: > 100 m2 | L27: =+$G$19 -> 1.47 | M27: per m2
C28: A6 | D28: tegels | E28: > 100 m2 | F28: =$J$15+$J$16 -> 20.97 | G28: per m2 | H28: + per m1 sleuflengte | J28: =$J$18 -> 0.65 | K28: > 100 m2 | L28: =+$J$19 -> 1.16 | M28: per m2
C29: A7 | D29: trottoirband | F29: =K15 -> 12.6 | G29: per m1 | H29: n.v.t | J29: 0 | L29: =$K$19 -> 0.76 | M29: per m1
C30: A8 | D30: opsluit/koprolband | F30: =+L15 -> 10.07 | G30: per m1 | H30: n.v.t. | J30: 0 | L30: =$L$19 -> 0.6 | M30: per m1
A32: Tarief: B1. | B32: Herstel en onderhoud door de aanbieder ( 12 maanden garantie) | H32: Degeneratie: | K32: Beheerskosten:
C34: B1 | D34: klinkers | E34: < 15 m2 | F34: 0 | G34: per m2 | H34: + per reparatie | J34: =$E$17 -> 23.83 | K34: < 15 m2 | L34: =+$E$19 -> 2.02 | M34: per m2
C35: B2 | D35: tegels | E35: < 15 m2 | F35: 0 | G35: per m2 | H35: + per reparatie | J35: =$H$17 -> 3.6 | K35: < 15 m2 | L35: =+$H$19 -> 1.6 | M35: per m2
C36: B3 | D36: klinkers | E36: > 15 m2 | F36: 0 | G36: per m2 | H36: + per m1 sleuflengte | J36: =$F$18 -> 7.9 | K36: > 15 m2 | L36: =+$F$19 -> 1.65 | M36: per m2
C37: B4 | D37: tegels | E37: > 15 m2 | F37: 0 | G37: per m2 | H37: + per m1 sleuflengte | J37: =$I$18 -> 0.7 | K37: > 15 m2 | L37: =+$I$19 -> 1.24 | M37: per m2
C38: B7 | D38: trottoirband | F38: 0 | G38: per m1 | H38: n.v.t | J38: 0 | L38: =$K$19 -> 0.76 | M38: per m1
C39: B8 | D39: opsluit/koprolband | F39: 0 | G39: per m1 | H39: n.v.t. | J39: 0 | L39: =$L$19 -> 0.6 | M39: per m1
A41: Tarief: B2. | B41: Herstel door de aanbieder (12 mnd.garantie) en onderhoud door de gemeente | H41: Degeneratie: | K41: Beheerskosten:
C43: B1 | D43: klinkers | E43: < 15 m2 | F43: =$E$16 -> 3.77 | G43: per m2 | H43: + per reparatie | J43: =$E$17 -> 23.83 | K43: < 15 m2 | L43: =+$E$19 -> 2.02 | M43: per m2
C44: B2 | D44: tegels | E44: < 15 m2 | F44: =$H$16 -> 2.19 | G44: per m2 | H44: + per reparatie | J44: =$H$17 -> 3.6 | K44: < 15 m2 | L44: =+$H$19 -> 1.6 | M44: per m2
C45: B3 | D45: klinkers | E45: > 15 m2 | F45: =$F$16 -> 3.08 | G45: per m2 | H45: + per m1 sleuflengte | J45: =$F$18 -> 7.9 | K45: > 15 m2 | L45: =+$F$19 -> 1.65 | M45: per m2
C46: B4 | D46: tegels | E46: > 15 m2 | F46: =$I$16 -> 1.69 | G46: per m2 | H46: + per m1 sleuflengte | J46: =$I$18 -> 0.7 | K46: > 15 m2 | L46: =+$I$19 -> 1.24 | M46: per m2
C47: B7 | D47: trottoirband | F47: 0 | G47: per m1 | H47: n.v.t | J47: 0 | L47: =$K$19 -> 0.76 | M47: per m1
C48: B8 | D48: opsluit/koprolband | F48: 0 | G48: per m1 | H48: n.v.t. | J48: 0 | L48: =$L$19 -> 0.6 | M48: per m1
A50: Tarief: C. | B50: Herstel door de gemeente voorafgaand aan gehele herbestrating. | H50: Beheerskosten:
C52: C1 | D52: klinkers | E52: < 15 m2 | F52: =($E$15/2)/1.2+$E$16 -> 17.77833333 | G52: per m2 | H52: < 15 m2 | I52: =+$E$19 -> 2.02 | J52: per m2
C53: C2 | D53: tegels | E53: < 15 m2 | F53: =($H$15/2)/1.2+$H$16 -> 13.30666667 | G53: per m2 | H53: < 15 m2 | I53: =+$H$19 -> 1.6 | J53: per m2
C54: C3 | D54: klinkers | E54: > 15 m2 | F54: =($F$15/2)/1.2+$F$16 -> 14.555 | G54: per m2 | H54: > 15 m2 | I54: =+$F$19 -> 1.65 | J54: per m2
C55: C4 | D55: tegels | E55: > 15 m2 | F55: =($I$15/2)/1.2+$I$16 -> 10.26916667 | G55: per m2 | H55: > 15 m2 | I55: =+$I$19 -> 1.24 | J55: per m2
C56: C7 | D56: trottoirband | F56: =($K$15/2)/1.2 -> 5.25 | G56: per m1 | I56: =$K$19 -> 0.76 | J56: per m1
C57: C8 | D57: opsluit/koprolband | F57: =($L$15/2)/1.2 -> 4.195833333 | G57: per m1 | I57: =$L$19 -> 0.6 | J57: per m1
A59: Tarief: C1 | B59: Herstel en onderhoud door de aanbieder ( 12 maanden garantie) voorafgaand aan gehele herbestrating. | H59: Beheerskosten:
C61: C1 | D61: klinkers | E61: < 15 m2 | F61: 0 | G61: per m2 | H61: < 15 m2 | I61: =+$E$19 -> 2.02 | J61: per m2
C62: C2 | D62: tegels | E62: < 15 m2 | F62: 0 | G62: per m2 | H62: < 15 m2 | I62: =+$H$19 -> 1.6 | J62: per m2
C63: C3 | D63: klinkers | E63: > 15 m2 | F63: 0 | G63: per m2 | H63: > 15 m2 | I63: =+$F$19 -> 1.65 | J63: per m2
C64: C4 | D64: tegels | E64: > 15 m2 | F64: 0 | G64: per m2 | H64: > 15 m2 | I64: =+$I$19 -> 1.24 | J64: per m2
C65: C7 | D65: trottoirband | F65: 0 | G65: per m1 | I65: =$K$19 -> 0.76 | J65: per m1
C66: C8 | D66: opsluit/koprolband | F66: 0 | G66: per m1 | I66: =$L$19 -> 0.6 | J66: per m1
A68: Tarief: C2 | B68: Herstel door de aanbieder (12 mnd.garantie) en onderhoud door de gemeente voorafgaand aan gehele herbestrating. | H68: Beheerskosten:
C70: C1 | D70: klinkers | E70: < 15 m2 | F70: =($E$16) -> 3.77 | G70: per m2 | H70: < 15 m2 | I70: =+$E$19 -> 2.02 | J70: per m2
C71: C2 | D71: tegels | E71: < 15 m2 | F71: =$H$16 -> 2.19 | G71: per m2 | H71: < 15 m2 | I71: =+$H$19 -> 1.6 | J71: per m2
C72: C3 | D72: klinkers | E72: > 15 m2 | F72: =$F$16 -> 3.08 | G72: per m2 | H72: > 15 m2 | I72: =+$F$19 -> 1.65 | J72: per m2
C73: C4 | D73: tegels | E73: > 15 m2 | F73: =$I$16 -> 1.69 | G73: per m2 | H73: > 15 m2 | I73: =+$I$19 -> 1.24 | J73: per m2
C74: C7 | D74: trottoirband | F74: 0 | G74: per m1 | I74: =$K$19 -> 0.76 | J74: per m1
C75: C8 | D75: opsluit/koprolband | F75: 0 | G75: per m1 | I75: =$L$19 -> 0.6 | J75: per m1
A77: Tarief: D. | B77: Overige tarieven, herstel door de gemeente of netbeheerder zoals aangegeven | I77: Beheerskosten
C79: D1 | D79: berm / gazon, herstel gemeente | G79: < 15 m2 | H79: =M15*15 -> 35.55 | I79: =M19*15 -> 2.1 | J79: per opbr.
C80: D2 | D80: berm / gazon, herstel aanbieder | G80: < 15 m2 | H80: 0 | I80: =M19*15 -> 2.1 | J80: per opbr.
C81: D3 | D81: berm / gazon, herstel gemeente | G81: > 15 m2 | H81: =M15 -> 2.37 | I81: =M19 -> 0.14 | J81: per m2
C82: D4 | D82: berm / gazon, herstel aanbieder | G82: > 15 m2 | H82: 0 | I82: =M19 -> 0.14 | J82: per m2
C83: D5 | D83: bomen en struiken | H83: werkelijke kosten
C84: D6 | D84: asfalt | H84: werkelijke kosten
A86: BTW is niet verschuldigd. Zie: Besluit van de Staatsecretaris van Financien dd 19 februari 2004, nr. CPP2003/3098M.
A87: Het tarief oppervlak (m2) straatwerk of berm wordt bepaaldt door vermeningvuldiging van lengte x breedte van de sleuf of lasgat ( gatvergroting zit in tarief)
A88: Per project is het aantal m2 op de straatwerkbon bepalend voor de toepassing van tarief <15 m2 of > 15 m2. Klinkers en tegels mogen niet bijelkaar worden opgeteld
A89: Meerdere kleine opbrekingen binnen 10 meter, aan één wegkant, worden aangemerkt als één reparatie.
A91: Wijzigingen per 1-1-2018:
A92: - Deze tarieven kunnen ook voor netbeheerders, niet zijnde een aanbieder van een elektronisch communicatienet werk worden toegepast, in welk geval 'aanbieder' ook staat voor 'netbeheerder';
A93: - Tarieven voor triottoir-, oplsluit/koprolband verplaatst van tarief D naar A, B1, B2, C, C1 en C2;
A94: - Naast Tarief C (herstel vooruitlopend aan herbestrating) is toegevoegd C1 (bij herstel en onderhoud door aanbieder) en C2 (herstel door aanbieder en onderhoud door gemeente). Deze C-tarieven gelden alleen indien vooraf afgestemd en de aanbieder maximaal 1 jaar voor de geplande uitvoering van de algehele herbestrating werkt.
A95: - Toegevoegd is een richtlijn voor het hanteren van de tarieven indien 'van band tot band' bestraat wordt (tarieven A, B1 en B2 delen door 1,2 en geen degeneratiekosten berekenen). Er is afgezien van het formaliseren van aparte tarieven voor deze gevallen.
A96: - Bermen/gazon: uitvoeringskosten per m2 herberekend, tarief t/m 50m2 vervallen (alleen nog per m2), 2 varianten: herstel door gemeente en herstel door netbeheerder.
A97: Wijzigingen per 1-1-2019:
A98: - Nu 2 tarieven voor bermen/gazon: tarief tot en met 15m2 per opbreking (minimum tarief 15 x m2-tarief) en het tarief per m2 boven de 15m2.

Sheet 70-80% slechte bodem
A2: RICHTLIJN TARIEVEN (GRAAF)WERKZAAMHEDEN TELECOM | K2: Bijlage A4
I3: Tarievenblad | K3: jaar/versie: | L3: ='Invoerblad tarieven'!$G$3 -> 2023 v1
A5: 1. Gegevens gemeente:
A6: Bodemgesteldheid categorie: 4. | D6: Onderhoud | G6: Degeneratie | K6: Beheerskosten:
D7: factor | E7: rijweg | F7: voetpad | G7: Klinker: < 15 m2 | H7: Klinker: > 15 m2 | I7: Tegels: < 15 m2 | J7: Tegels: > 15 m2 | K7: algemeen
A9: vanaf 70% tot 80% slechte bodem | D9: 0.75 | E9: 0.18 | F9: 0.1325 | G9: 1.29 | H9: 0.6775 | I9: 0.46 | J9: 0.49 | K9: =6/100 -> 0.06
A10: 2. Overzicht kostenopbouw:
E11: Klinkers: | H11: Tegels: | K11: Trottoit- | L11: Opsluit- | M11: Berm en
E12: Rijweg | F12: =80/100 -> 0.8 | H12: Voetpad | I12: =95/100 -> 0.95 | K12: band | L12: band | M12: Gazon
E13: Voetpad | F13: =20/100 -> 0.2 | H13: Rijweg | I13: =5/100 -> 0.05
E14: <15 m2 | F14: >15 m2 | G14: >100 m2 | H14: <15 m2 | I14: >15 m2 | J14: >100 m2 | K14: Eenheid: m1 | L14: Eenheid: m1 | M14: Eenheid: m2
A15: 1. Uitvoering: | C15: per m2 | E15: =Moederblad!$J$61 -> 33.62 | F15: =Moederblad!$J$62 -> 27.54 | G15: =Moederblad!$J$63 -> 24.5 | H15: =Moederblad!$J$64 -> 26.68 | I15: =Moederblad!$J$65 -> 20.59 | J15: =Moederblad!$J$66 -> 19.38 | K15: =Moederblad!J67 -> 12.6 | L15: =Moederblad!J68 -> 10.07 | M15: =Moederblad!J72 -> 2.37
A16: 2. Onderhoud: | C16: per m2 | E16: =ROUND($F$12*($E$9*E15)+$F$13*($F$9*$E$15),2) -> 5.73 | F16: =ROUND($F$12*($E$9*$F$15)+$F$13*($F$9*$F$15),2) -> 4.7 | G16: =ROUND($F$12*($E$9*$G$15)+$F$13*($F$9*$G$15),2) -> 4.18 | H16: =ROUND($I$12*($F$9*$H$15)+$I$13*($E$9*$H$15),2) -> 3.6 | I16: =ROUND($I$12*($F$9*$I$15)+$I$13*($E$9*$I$15),2) -> 2.78 | J16: =ROUND($I$12*($F$9*$J$15)+$I$13*($E$9*$J$15),2) -> 2.61
A17: 3a. Degeneratie: | C17: per reparatie | E17: =ROUND(($G$9*$E$15)/1.185,2) -> 36.6 | H17: =ROUND(($I$9*$H$15)/1.185,2) -> 10.36
A18: 3b. Degeneratie: | C18: per m1 sleuflengte | F18: =ROUND(($H$9*$F$15)/1.185,2) -> 15.75 | G18: =ROUND(($H$9*$G$15)/1.185,2) -> 14.01 | I18: =ROUND(($J$9*$I$15)/1.185,2) -> 8.51 | J18: =ROUND(($J$9*$J$15)/1.185,2) -> 8.01
A19: 4. Beheerskosten: | C19: per m2 | E19: =ROUND($K$9*$E$15,2) -> 2.02 | F19: =ROUND($K$9*$F$15,2) -> 1.65 | G19: =ROUND($K$9*$G$15,2) -> 1.47 | H19: =ROUND($K$9*$H$15,2) -> 1.6 | I19: =ROUND($K$9*$I$15,2) -> 1.24 | J19: =ROUND($K$9*$J$15,2) -> 1.16 | K19: =ROUND($K$9*$K$15,2) -> 0.76 | L19: =ROUND($K$9*$L$15,2) -> 0.6 | M19: =ROUND($K$9*$M$15,2) -> 0.14
A20: 3. Tarieven:
A21: Tarief: A. | B21: Herstel, onderhoud, uitgevoerd door de gemeente inclusief beheerskosten | H21: Degeneratie: | K21: Beheerskosten:
C23: A1 | D23: klinkers | E23: < 15 m2 | F23: =$E$15+$E$16 -> 39.35 | G23: per m2 | H23: + per reparatie | J23: =$E$17 -> 36.6 | K23: < 15 m2 | L23: =+$E$19 -> 2.02 | M23: per m2
C24: A2 | D24: tegels | E24: < 15 m2 | F24: =$H$15+$H$16 -> 30.28 | G24: per m2 | H24: + per reparatie | J24: =$H$17 -> 10.36 | K24: < 15 m2 | L24: =+$H$19 -> 1.6 | M24: per m2
C25: A3 | D25: klinkers | E25: > 15 m2 | F25: =$F$15+$F$16 -> 32.24 | G25: per m2 | H25: + per m1 sleuflengte | J25: =$F$18 -> 15.75 | K25: > 15 m2 | L25: =+$F$19 -> 1.65 | M25: per m2
C26: A4 | D26: tegels | E26: > 15 m2 | F26: =$I$15+$I$16 -> 23.37 | G26: per m2 | H26: + per m1 sleuflengte | J26: =$I$18 -> 8.51 | K26: > 15 m2 | L26: =+$I$19 -> 1.24 | M26: per m2
C27: A5 | D27: klinkers | E27: > 100 m2 | F27: =$G$15+$G$16 -> 28.68 | G27: per m2 | H27: + per m1 sleuflengte | J27: =$G$18 -> 14.01 | K27: > 100 m2 | L27: =+$G$19 -> 1.47 | M27: per m2
C28: A6 | D28: tegels | E28: > 100 m2 | F28: =$J$15+$J$16 -> 21.99 | G28: per m2 | H28: + per m1 sleuflengte | J28: =$J$18 -> 8.01 | K28: > 100 m2 | L28: =+$J$19 -> 1.16 | M28: per m2
C29: A7 | D29: trottoirband | F29: =K15 -> 12.6 | G29: per m1 | H29: n.v.t | J29: 0 | L29: =$K$19 -> 0.76 | M29: per m1
C30: A8 | D30: opsluit/koprolband | F30: =+L15 -> 10.07 | G30: per m1 | H30: n.v.t. | J30: 0 | L30: =$L$19 -> 0.6 | M30: per m1
A32: Tarief: B1. | B32: Herstel en onderhoud door de aanbieder ( 12 maanden garantie) | H32: Degeneratie: | K32: Beheerskosten:
C34: B1 | D34: klinkers | E34: < 15 m2 | F34: 0 | G34: per m2 | H34: + per reparatie | J34: =$E$17 -> 36.6 | K34: < 15 m2 | L34: =+$E$19 -> 2.02 | M34: per m2
C35: B2 | D35: tegels | E35: < 15 m2 | F35: 0 | G35: per m2 | H35: + per reparatie | J35: =$H$17 -> 10.36 | K35: < 15 m2 | L35: =+$H$19 -> 1.6 | M35: per m2
C36: B3 | D36: klinkers | E36: > 15 m2 | F36: 0 | G36: per m2 | H36: + per m1 sleuflengte | J36: =$F$18 -> 15.75 | K36: > 15 m2 | L36: =+$F$19 -> 1.65 | M36: per m2
C37: B4 | D37: tegels | E37: > 15 m2 | F37: 0 | G37: per m2 | H37: + per m1 sleuflengte | J37: =$I$18 -> 8.51 | K37: > 15 m2 | L37: =+$I$19 -> 1.24 | M37: per m2
C38: B7 | D38: trottoirband | F38: 0 | G38: per m1 | H38: n.v.t | J38: 0 | L38: =$K$19 -> 0.76 | M38: per m1
C39: B8 | D39: opsluit/koprolband | F39: 0 | G39: per m1 | H39: n.v.t. | J39: 0 | L39: =$L$19 -> 0.6 | M39: per m1
A41: Tarief: B2. | B41: Herstel door de aanbieder (12 mnd.garantie) en onderhoud door de gemeente | H41: Degeneratie: | K41: Beheerskosten:
C43: B1 | D43: klinkers | E43: < 15 m2 | F43: =$E$16 -> 5.73 | G43: per m2 | H43: + per reparatie | J43: =$E$17 -> 36.6 | K43: < 15 m2 | L43: =+$E$19 -> 2.02 | M43: per m2
C44: B2 | D44: tegels | E44: < 15 m2 | F44: =$H$16 -> 3.6 | G44: per m2 | H44: + per reparatie | J44: =$H$17 -> 10.36 | K44: < 15 m2 | L44: =+$H$19 -> 1.6 | M44: per m2
C45: B3 | D45: klinkers | E45: > 15 m2 | F45: =$F$16 -> 4.7 | G45: per m2 | H45: + per m1 sleuflengte | J45: =$F$18 -> 15.75 | K45: > 15 m2 | L45: =+$F$19 -> 1.65 | M45: per m2
C46: B4 | D46: tegels | E46: > 15 m2 | F46: =$I$16 -> 2.78 | G46: per m2 | H46: + per m1 sleuflengte | J46: =$I$18 -> 8.51 | K46: > 15 m2 | L46: =+$I$19 -> 1.24 | M46: per m2
C47: B7 | D47: trottoirband | F47: 0 | G47: per m1 | H47: n.v.t | J47: 0 | L47: =$K$19 -> 0.76 | M47: per m1
C48: B8 | D48: opsluit/koprolband | F48: 0 | G48: per m1 | H48: n.v.t. | J48: 0 | L48: =$L$19 -> 0.6 | M48: per m1
A50: Tarief: C. | B50: Herstel door de gemeente voorafgaand aan gehele herbestrating. | H50: Beheerskosten:
C52: C1 | D52: klinkers | E52: < 15 m2 | F52: =($E$15/2)/1.2+$E$16 -> 19.73833333 | G52: per m2 | H52: < 15 m2 | I52: =+$E$19 -> 2.02 | J52: per m2
C53: C2 | D53: tegels | E53: < 15 m2 | F53: =($H$15/2)/1.2+$H$16 -> 14.71666667 | G53: per m2 | H53: < 15 m2 | I53: =+$H$19 -> 1.6 | J53: per m2
C54: C3 | D54: klinkers | E54: > 15 m2 | F54: =($F$15/2)/1.2+$F$16 -> 16.175 | G54: per m2 | H54: > 15 m2 | I54: =+$F$19 -> 1.65 | J54: per m2
C55: C4 | D55: tegels | E55: > 15 m2 | F55: =($I$15/2)/1.2+$I$16 -> 11.35916667 | G55: per m2 | H55: > 15 m2 | I55: =+$I$19 -> 1.24 | J55: per m2
C56: C7 | D56: trottoirband | F56: =($K$15/2)/1.2 -> 5.25 | G56: per m1 | I56: =$K$19 -> 0.76 | J56: per m1
C57: C8 | D57: opsluit/koprolband | F57: =($L$15/2)/1.2 -> 4.195833333 | G57: per m1 | I57: =$L$19 -> 0.6 | J57: per m1
A59: Tarief: C1 | B59: Herstel en onderhoud door de aanbieder ( 12 maanden garantie) voorafgaand aan gehele herbestrating. | H59: Beheerskosten:
C61: C1 | D61: klinkers | E61: < 15 m2 | F61: 0 | G61: per m2 | H61: < 15 m2 | I61: =+$E$19 -> 2.02 | J61: per m2
C62: C2 | D62: tegels | E62: < 15 m2 | F62: 0 | G62: per m2 | H62: < 15 m2 | I62: =+$H$19 -> 1.6 | J62: per m2
C63: C3 | D63: klinkers | E63: > 15 m2 | F63: 0 | G63: per m2 | H63: > 15 m2 | I63: =+$F$19 -> 1.65 | J63: per m2
C64: C4 | D64: tegels | E64: > 15 m2 | F64: 0 | G64: per m2 | H64: > 15 m2 | I64: =+$I$19 -> 1.24 | J64: per m2
C65: C7 | D65: trottoirband | F65: 0 | G65: per m1 | I65: =$K$19 -> 0.76 | J65: per m1
C66: C8 | D66: opsluit/koprolband | F66: 0 | G66: per m1 | I66: =$L$19 -> 0.6 | J66: per m1
A68: Tarief: C2 | B68: Herstel door de aanbieder (12 mnd.garantie) en onderhoud door de gemeente voorafgaand aan gehele herbestrating. | H68: Beheerskosten:
C70: C1 | D70: klinkers | E70: < 15 m2 | F70: =($E$16) -> 5.73 | G70: per m2 | H70: < 15 m2 | I70: =+$E$19 -> 2.02 | J70: per m2
C71: C2 | D71: tegels | E71: < 15 m2 | F71: =$H$16 -> 3.6 | G71: per m2 | H71: < 15 m2 | I71: =+$H$19 -> 1.6 | J71: per m2
C72: C3 | D72: klinkers | E72: > 15 m2 | F72: =$F$16 -> 4.7 | G72: per m2 | H72: > 15 m2 | I72: =+$F$19 -> 1.65 | J72: per m2
C73: C4 | D73: tegels | E73: > 15 m2 | F73: =$I$16 -> 2.78 | G73: per m2 | H73: > 15 m2 | I73: =+$I$19 -> 1.24 | J73: per m2
C74: C7 | D74: trottoirband | F74: 0 | G74: per m1 | I74: =$K$19 -> 0.76 | J74: per m1
C75: C8 | D75: opsluit/koprolband | F75: 0 | G75: per m1 | I75: =$L$19 -> 0.6 | J75: per m1
A77: Tarief: D. | B77: Overige tarieven, herstel door de gemeente of netbeheerder zoals aangegeven | I77: Beheerskosten
C79: D1 | D79: berm / gazon, herstel gemeente | G79: < 15 m2 | H79: =M15*15 -> 35.55 | I79: =M19*15 -> 2.1 | J79: per opbr.
C80: D2 | D80: berm / gazon, herstel aanbieder | G80: < 15 m2 | H80: 0 | I80: =M19*15 -> 2.1 | J80: per opbr.
C81: D3 | D81: berm / gazon, herstel gemeente | G81: > 15 m2 | H81: =M15 -> 2.37 | I81: =M19 -> 0.14 | J81: per m2
C82: D4 | D82: berm / gazon, herstel aanbieder | G82: > 15 m2 | H82: 0 | I82: =M19 -> 0.14 | J82: per m2
C83: D5 | D83: bomen en struiken | H83: werkelijke kosten
C84: D6 | D84: asfalt | H84: werkelijke kosten
A86: BTW is niet verschuldigd. Zie: Besluit van de Staatsecretaris van Financien dd 19 februari 2004, nr. CPP2003/3098M.
A87: Het tarief oppervlak (m2) straatwerk of berm wordt bepaaldt door vermeningvuldiging van lengte x breedte van de sleuf of lasgat ( gatvergroting zit in tarief)
A88: Per project is het aantal m2 op de straatwerkbon bepalend voor de toepassing van tarief <15 m2 of > 15 m2. Klinkers en tegels mogen niet bijelkaar worden opgeteld
A89: Meerdere kleine opbrekingen binnen 10 meter, aan één wegkant, worden aangemerkt als één reparatie.
A91: Wijzigingen per 1-1-2018:
A92: - Deze tarieven kunnen ook voor netbeheerders, niet zijnde een aanbieder van een elektronisch communicatienet werk worden toegepast, in welk geval 'aanbieder' ook staat voor 'netbeheerder';
A93: - Tarieven voor triottoir-, oplsluit/koprolband verplaatst van tarief D naar A, B1, B2, C, C1 en C2;
A94: - Naast Tarief C (herstel vooruitlopend aan herbestrating) is toegevoegd C1 (bij herstel en onderhoud door aanbieder) en C2 (herstel door aanbieder en onderhoud door gemeente). Deze C-tarieven gelden alleen indien vooraf afgestemd en de aanbieder maximaal 1 jaar voor de geplande uitvoering van de algehele herbestrating werkt.
A95: - Toegevoegd is een richtlijn voor het hanteren van de tarieven indien 'van band tot band' bestraat wordt (tarieven A, B1 en B2 delen door 1,2 en geen degeneratiekosten berekenen). Er is afgezien van het formaliseren van aparte tarieven voor deze gevallen.
A96: - Bermen/gazon: uitvoeringskosten per m2 herberekend, tarief t/m 50m2 vervallen (alleen nog per m2), 2 varianten: herstel door gemeente en herstel door netbeheerder.
A97: Wijzigingen per 1-1-2019:
A98: - Nu 2 tarieven voor bermen/gazon: tarief tot en met 15m2 per opbreking (minimum tarief 15 x m2-tarief) en het tarief per m2 boven de 15m2.

Sheet > 80% slechte bodem
A2: RICHTLIJN TARIEVEN (GRAAF)WERKZAAMHEDEN TELECOM | K2: Bijlage A5
I3: Tarievenblad | K3: jaar/versie: | L3: ='Invoerblad tarieven'!$G$3 -> 2023 v1
A5: 1. Gegevens gemeente:
A6: Bodemgesteldheid categorie: 5. | D6: Onderhoud | G6: Degeneratie | K6: Beheerskosten:
D7: factor | E7: rijweg | F7: voetpad | G7: Klinker: < 15 m2 | H7: Klinker: > 15 m2 | I7: Tegels: < 15 m2 | J7: Tegels: > 15 m2 | K7: algemeen
A9: vanaf 80% slechte bodem | D9: 1 | E9: 0.2 | F9: 0.15 | G9: 1.58 | H9: 0.79 | I9: 0.56 | J9: 0.64 | K9: =6/100 -> 0.06
A10: 2. Overzicht kostenopbouw:
E11: Klinkers: | H11: Tegels: | K11: Trottoit- | L11: Opsluit- | M11: Berm en
E12: Rijweg | F12: =80/100 -> 0.8 | H12: Voetpad | I12: =95/100 -> 0.95 | K12: band | L12: band | M12: Gazon
E13: Voetpad | F13: =20/100 -> 0.2 | H13: Rijweg | I13: =5/100 -> 0.05
E14: <15 m2 | F14: >15 m2 | G14: >100 m2 | H14: <15 m2 | I14: >15 m2 | J14: >100 m2 | K14: Eenheid: m1 | L14: Eenheid: m1 | M14: Eenheid: m2
A15: 1. Uitvoering: | C15: per m2 | E15: =Moederblad!$J$61 -> 33.62 | F15: =Moederblad!$J$62 -> 27.54 | G15: =Moederblad!$J$63 -> 24.5 | H15: =Moederblad!$J$64 -> 26.68 | I15: =Moederblad!$J$65 -> 20.59 | J15: =Moederblad!$J$66 -> 19.38 | K15: =Moederblad!J67 -> 12.6 | L15: =Moederblad!J68 -> 10.07 | M15: =Moederblad!J72 -> 2.37
A16: 2. Onderhoud: | C16: per m2 | E16: =ROUND($F$12*($E$9*E15)+$F$13*($F$9*$E$15),2) -> 6.39 | F16: =ROUND($F$12*($E$9*$F$15)+$F$13*($F$9*$F$15),2) -> 5.23 | G16: =ROUND($F$12*($E$9*$G$15)+$F$13*($F$9*$G$15),2) -> 4.66 | H16: =ROUND($I$12*($F$9*$H$15)+$I$13*($E$9*$H$15),2) -> 4.07 | I16: =ROUND($I$12*($F$9*$I$15)+$I$13*($E$9*$I$15),2) -> 3.14 | J16: =ROUND($I$12*($F$9*$J$15)+$I$13*($E$9*$J$15),2) -> 2.96
A17: 3a. Degeneratie: | C17: per reparatie | E17: =ROUND(($G$9*$E$15)/1.185,2) -> 44.83 | H17: =ROUND(($I$9*$H$15)/1.185,2) -> 12.61
A18: 3b. Degeneratie: | C18: per m1 sleuflengte | F18: =ROUND(($H$9*$F$15)/1.185,2) -> 18.36 | G18: =ROUND(($H$9*$G$15)/1.185,2) -> 16.33 | I18: =ROUND(($J$9*$I$15)/1.185,2) -> 11.12 | J18: =ROUND(($J$9*$J$15)/1.185,2) -> 10.47
A19: 4. Beheerskosten: | C19: per m2 | E19: =ROUND($K$9*$E$15,2) -> 2.02 | F19: =ROUND($K$9*$F$15,2) -> 1.65 | G19: =ROUND($K$9*$G$15,2) -> 1.47 | H19: =ROUND($K$9*$H$15,2) -> 1.6 | I19: =ROUND($K$9*$I$15,2) -> 1.24 | J19: =ROUND($K$9*$J$15,2) -> 1.16 | K19: =ROUND($K$9*$K$15,2) -> 0.76 | L19: =ROUND($K$9*$L$15,2) -> 0.6 | M19: =ROUND($K$9*$M$15,2) -> 0.14
A20: 3. Tarieven:
A21: Tarief: A. | B21: Herstel, onderhoud, uitgevoerd door de gemeente inclusief beheerskosten | H21: Degeneratie: | K21: Beheerskosten:
C23: A1 | D23: klinkers | E23: < 15 m2 | F23: =$E$15+$E$16 -> 40.01 | G23: per m2 | H23: + per reparatie | J23: =$E$17 -> 44.83 | K23: < 15 m2 | L23: =+$E$19 -> 2.02 | M23: per m2
C24: A2 | D24: tegels | E24: < 15 m2 | F24: =$H$15+$H$16 -> 30.75 | G24: per m2 | H24: + per reparatie | J24: =$H$17 -> 12.61 | K24: < 15 m2 | L24: =+$H$19 -> 1.6 | M24: per m2
C25: A3 | D25: klinkers | E25: > 15 m2 | F25: =$F$15+$F$16 -> 32.77 | G25: per m2 | H25: + per m1 sleuflengte | J25: =$F$18 -> 18.36 | K25: > 15 m2 | L25: =+$F$19 -> 1.65 | M25: per m2
C26: A4 | D26: tegels | E26: > 15 m2 | F26: =$I$15+$I$16 -> 23.73 | G26: per m2 | H26: + per m1 sleuflengte | J26: =$I$18 -> 11.12 | K26: > 15 m2 | L26: =+$I$19 -> 1.24 | M26: per m2
C27: A5 | D27: klinkers | E27: > 100 m2 | F27: =$G$15+$G$16 -> 29.16 | G27: per m2 | H27: + per m1 sleuflengte | J27: =$G$18 -> 16.33 | K27: > 100 m2 | L27: =+$G$19 -> 1.47 | M27: per m2
C28: A6 | D28: tegels | E28: > 100 m2 | F28: =$J$15+$J$16 -> 22.34 | G28: per m2 | H28: + per m1 sleuflengte | J28: =$J$18 -> 10.47 | K28: > 100 m2 | L28: =+$J$19 -> 1.16 | M28: per m2
C29: A7 | D29: trottoirband | F29: =K15 -> 12.6 | G29: per m1 | H29: n.v.t | J29: 0 | L29: =$K$19 -> 0.76 | M29: per m1
C30: A8 | D30: opsluit/koprolband | F30: =+L15 -> 10.07 | G30: per m1 | H30: n.v.t. | J30: 0 | L30: =$L$19 -> 0.6 | M30: per m1
A32: Tarief: B1. | B32: Herstel en onderhoud door de aanbieder ( 12 maanden garantie) | H32: Degeneratie: | K32: Beheerskosten:
C34: B1 | D34: klinkers | E34: < 15 m2 | F34: 0 | G34: per m2 | H34: + per reparatie | J34: =$E$17 -> 44.83 | K34: < 15 m2 | L34: =+$E$19 -> 2.02 | M34: per m2
C35: B2 | D35: tegels | E35: < 15 m2 | F35: 0 | G35: per m2 | H35: + per reparatie | J35: =$H$17 -> 12.61 | K35: < 15 m2 | L35: =+$H$19 -> 1.6 | M35: per m2
C36: B3 | D36: klinkers | E36: > 15 m2 | F36: 0 | G36: per m2 | H36: + per m1 sleuflengte | J36: =$F$18 -> 18.36 | K36: > 15 m2 | L36: =+$F$19 -> 1.65 | M36: per m2
C37: B4 | D37: tegels | E37: > 15 m2 | F37: 0 | G37: per m2 | H37: + per m1 sleuflengte | J37: =$I$18 -> 11.12 | K37: > 15 m2 | L37: =+$I$19 -> 1.24 | M37: per m2
C38: B7 | D38: trottoirband | F38: 0 | G38: per m1 | H38: n.v.t | J38: 0 | L38: =$K$19 -> 0.76 | M38: per m1
C39: B8 | D39: opsluit/koprolband | F39: 0 | G39: per m1 | H39: n.v.t. | J39: 0 | L39: =$L$19 -> 0.6 | M39: per m1
A41: Tarief: B2. | B41: Herstel door de aanbieder (12 mnd.garantie) en onderhoud door de gemeente | H41: Degeneratie: | K41: Beheerskosten:
C43: B1 | D43: klinkers | E43: < 15 m2 | F43: =$E$16 -> 6.39 | G43: per m2 | H43: + per reparatie | J43: =$E$17 -> 44.83 | K43: < 15 m2 | L43: =+$E$19 -> 2.02 | M43: per m2
C44: B2 | D44: tegels | E44: < 15 m2 | F44: =$H$16 -> 4.07 | G44: per m2 | H44: + per reparatie | J44: =$H$17 -> 12.61 | K44: < 15 m2 | L44: =+$H$19 -> 1.6 | M44: per m2
C45: B3 | D45: klinkers | E45: > 15 m2 | F45: =$F$16 -> 5.23 | G45: per m2 | H45: + per m1 sleuflengte | J45: =$F$18 -> 18.36 | K45: > 15 m2 | L45: =+$F$19 -> 1.65 | M45: per m2
C46: B4 | D46: tegels | E46: > 15 m2 | F46: =$I$16 -> 3.14 | G46: per m2 | H46: + per m1 sleuflengte | J46: =$I$18 -> 11.12 | K46: > 15 m2 | L46: =+$I$19 -> 1.24 | M46: per m2
C47: B7 | D47: trottoirband | F47: 0 | G47: per m1 | H47: n.v.t | J47: 0 | L47: =$K$19 -> 0.76 | M47: per m1
C48: B8 | D48: opsluit/koprolband | F48: 0 | G48: per m1 | H48: n.v.t. | J48: 0 | L48: =$L$19 -> 0.6 | M48: per m1
A50: Tarief: C. | B50: Herstel door de gemeente voorafgaand aan gehele herbestrating. | H50: Beheerskosten:
C52: C1 | D52: klinkers | E52: < 15 m2 | F52: =($E$15/2)/1.2+$E$16 -> 20.39833333 | G52: per m2 | H52: < 15 m2 | I52: =+$E$19 -> 2.02 | J52: per m2
C53: C2 | D53: tegels | E53: < 15 m2 | F53: =($H$15/2)/1.2+$H$16 -> 15.18666667 | G53: per m2 | H53: < 15 m2 | I53: =+$H$19 -> 1.6 | J53: per m2
C54: C3 | D54: klinkers | E54: > 15 m2 | F54: =($F$15/2)/1.2+$F$16 -> 16.705 | G54: per m2 | H54: > 15 m2 | I54: =+$F$19 -> 1.65 | J54: per m2
C55: C4 | D55: tegels | E55: > 15 m2 | F55: =($I$15/2)/1.2+$I$16 -> 11.71916667 | G55: per m2 | H55: > 15 m2 | I55: =+$I$19 -> 1.24 | J55: per m2
C56: C7 | D56: trottoirband | F56: =($K$15/2)/1.2 -> 5.25 | G56: per m1 | I56: =$K$19 -> 0.76 | J56: per m1
C57: C8 | D57: opsluit/koprolband | F57: =($L$15/2)/1.2 -> 4.195833333 | G57: per m1 | I57: =$L$19 -> 0.6 | J57: per m1
A59: Tarief: C1 | B59: Herstel en onderhoud door de aanbieder ( 12 maanden garantie) voorafgaand aan gehele herbestrating. | H59: Beheerskosten:
C61: C1 | D61: klinkers | E61: < 15 m2 | F61: 0 | G61: per m2 | H61: < 15 m2 | I61: =+$E$19 -> 2.02 | J61: per m2
C62: C2 | D62: tegels | E62: < 15 m2 | F62: 0 | G62: per m2 | H62: < 15 m2 | I62: =+$H$19 -> 1.6 | J62: per m2
C63: C3 | D63: klinkers | E63: > 15 m2 | F63: 0 | G63: per m2 | H63: > 15 m2 | I63: =+$F$19 -> 1.65 | J63: per m2
C64: C4 | D64: tegels | E64: > 15 m2 | F64: 0 | G64: per m2 | H64: > 15 m2 | I64: =+$I$19 -> 1.24 | J64: per m2
C65: C7 | D65: trottoirband | F65: 0 | G65: per m1 | I65: =$K$19 -> 0.76 | J65: per m1
C66: C8 | D66: opsluit/koprolband | F66: 0 | G66: per m1 | I66: =$L$19 -> 0.6 | J66: per m1
A68: Tarief: C2 | B68: Herstel door de aanbieder (12 mnd.garantie) en onderhoud door de gemeente voorafgaand aan gehele herbestrating. | H68: Beheerskosten:
C70: C1 | D70: klinkers | E70: < 15 m2 | F70: =($E$16) -> 6.39 | G70: per m2 | H70: < 15 m2 | I70: =+$E$19 -> 2.02 | J70: per m2
C71: C2 | D71: tegels | E71: < 15 m2 | F71: =$H$16 -> 4.07 | G71: per m2 | H71: < 15 m2 | I71: =+$H$19 -> 1.6 | J71: per m2
C72: C3 | D72: klinkers | E72: > 15 m2 | F72: =$F$16 -> 5.23 | G72: per m2 | H72: > 15 m2 | I72: =+$F$19 -> 1.65 | J72: per m2
C73: C4 | D73: tegels | E73: > 15 m2 | F73: =$I$16 -> 3.14 | G73: per m2 | H73: > 15 m2 | I73: =+$I$19 -> 1.24 | J73: per m2
C74: C7 | D74: trottoirband | F74: 0 | G74: per m1 | I74: =$K$19 -> 0.76 | J74: per m1
C75: C8 | D75: opsluit/koprolband | F75: 0 | G75: per m1 | I75: =$L$19 -> 0.6 | J75: per m1
A77: Tarief: D. | B77: Overige tarieven, herstel door de gemeente of netbeheerder zoals aangegeven | I77: Beheerskosten
C79: D1 | D79: berm / gazon, herstel gemeente | G79: < 15 m2 | H79: =M15*15 -> 35.55 | I79: =M19*15 -> 2.1 | J79: per opbr.
C80: D2 | D80: berm / gazon, herstel aanbieder | G80: < 15 m2 | H80: 0 | I80: =M19*15 -> 2.1 | J80: per opbr.
C81: D3 | D81: berm / gazon, herstel gemeente | G81: > 15 m2 | H81: =M15 -> 2.37 | I81: =M19 -> 0.14 | J81: per m2
C82: D4 | D82: berm / gazon, herstel aanbieder | G82: > 15 m2 | H82: 0 | I82: =M19 -> 0.14 | J82: per m2
C83: D5 | D83: bomen en struiken | H83: werkelijke kosten
C84: D6 | D84: asfalt | H84: werkelijke kosten
A86: BTW is niet verschuldigd. Zie: Besluit van de Staatsecretaris van Financien dd 19 februari 2004, nr. CPP2003/3098M.
A87: Het tarief oppervlak (m2) straatwerk of berm wordt bepaaldt door vermeningvuldiging van lengte x breedte van de sleuf of lasgat ( gatvergroting zit in tarief)
A88: Per project is het aantal m2 op de straatwerkbon bepalend voor de toepassing van tarief <15 m2 of > 15 m2. Klinkers en tegels mogen niet bijelkaar worden opgeteld
A89: Meerdere kleine opbrekingen binnen 10 meter, aan één wegkant, worden aangemerkt als één reparatie.
A91: Wijzigingen per 1-1-2018:
A92: - Deze tarieven kunnen ook voor netbeheerders, niet zijnde een aanbieder van een elektronisch communicatienet werk worden toegepast, in welk geval 'aanbieder' ook staat voor 'netbeheerder';
A93: - Tarieven voor triottoir-, oplsluit/koprolband verplaatst van tarief D naar A, B1, B2, C, C1 en C2;
A94: - Naast Tarief C (herstel vooruitlopend aan herbestrating) is toegevoegd C1 (bij herstel en onderhoud door aanbieder) en C2 (herstel door aanbieder en onderhoud door gemeente). Deze C-tarieven gelden alleen indien vooraf afgestemd en de aanbieder maximaal 1 jaar voor de geplande uitvoering van de algehele herbestrating werkt.
A95: - Toegevoegd is een richtlijn voor het hanteren van de tarieven indien 'van band tot band' bestraat wordt (tarieven A, B1 en B2 delen door 1,2 en geen degeneratiekosten berekenen). Er is afgezien van het formaliseren van aparte tarieven voor deze gevallen.
A96: - Bermen/gazon: uitvoeringskosten per m2 herberekend, tarief t/m 50m2 vervallen (alleen nog per m2), 2 varianten: herstel door gemeente en herstel door netbeheerder.
A97: Wijzigingen per 1-1-2019:
A98: - Nu 2 tarieven voor bermen/gazon: tarief tot en met 15m2 per opbreking (minimum tarief 15 x m2-tarief) en het tarief per m2 boven de 15m2.

Sheet Tabel Tarieven
A1: Kostensoort | B1: Tariefgroepen | I1: Omschrijving | J1: Eenheid | K1: ="Bedragen "&'Invoerblad tarieven'!G3 & " per kostensoort per bodemcategorie" -> Bedragen 2023 v1 per kostensoort per bodemcategorie
A2: Uitvoeringskosten | B2: X in kolom is van toepassing bij deze tariefgroep | I2: Klinkers, tegels, trottoirband, opsluit/koprolband, berm/gazon. Eenheid: per m2, m1, bij degeneratie per reparatie of m1 sleuf | K2: Afh. Cat.?: | L2: Bij nee zijn de tarieven gelijk in elke kolom: onafhankelijk categorie
A3: Onderhoudskosten | K3: > Zie > tabblad >>>> | L3: < 50% slechte bodem | M3: 50-60% slechte bodem | N3: 60-70% slechte bodem | O3: 70-80% slechte bodem | P3: > 80% slechte bodem
A4: Degeneratiekosten
A5: Beheerkosten | B5: A | C5: B1 | D5: B2 | E5: C | F5: C1 | G5: C2 | H5: D | K5: Afh. Cat.? | L5: 1 | M5: 2 | N5: 3 | O5: 4 | P5: 5
A6: Uitvoeringskosten | B6: X | I6: klinkers <= 15 m2 | J6: m2 | K6: Nee | L6: ='< 50% slechte bodem'!$E$15 -> 33.62 | M6: ='< 50% slechte bodem'!$E$15 -> 33.62 | N6: ='60-70% slechte bodem'!$E$15 -> 33.62 | O6: ='< 50% slechte bodem'!$E$15 -> 33.62 | P6: ='< 50% slechte bodem'!$E$15 -> 33.62
A7: Uitvoeringskosten | B7: X | I7: klinkers >15 m2 | J7: m2 | K7: Nee | L7: ='< 50% slechte bodem'!$F$15 -> 27.54 | M7: ='50-60% slechte bodem'!$F$15 -> 27.54 | N7: ='60-70% slechte bodem'!$F$15 -> 27.54 | O7: ='70-80% slechte bodem'!$F$15 -> 27.54 | P7: ='> 80% slechte bodem'!$F$15 -> 27.54
A8: Uitvoeringskosten | B8: X | I8: klinkers >100 m2 | J8: m2 | K8: Nee | L8: ='< 50% slechte bodem'!$G$15 -> 24.5 | M8: ='50-60% slechte bodem'!$G$15 -> 24.5 | N8: ='60-70% slechte bodem'!$G$15 -> 24.5 | O8: ='70-80% slechte bodem'!$G$15 -> 24.5 | P8: ='> 80% slechte bodem'!$G$15 -> 24.5
A9: Uitvoeringskosten | B9: X | I9: tegels <= 15 m2 | J9: m2 | K9: Nee | L9: ='< 50% slechte bodem'!$H$15 -> 26.68 | M9: ='50-60% slechte bodem'!$H$15 -> 26.68 | N9: ='60-70% slechte bodem'!$H$15 -> 26.68 | O9: ='70-80% slechte bodem'!$H$15 -> 26.68 | P9: ='> 80% slechte bodem'!$H$15 -> 26.68
A10: Uitvoeringskosten | B10: X | I10: tegels >15 m2 | J10: m2 | K10: Nee | L10: ='< 50% slechte bodem'!$I$15 -> 20.59 | M10: ='50-60% slechte bodem'!$I$15 -> 20.59 | N10: ='60-70% slechte bodem'!$I$15 -> 20.59 | O10: ='70-80% slechte bodem'!$I$15 -> 20.59 | P10: ='> 80% slechte bodem'!$I$15 -> 20.59
A11: Uitvoeringskosten | B11: X | I11: tegels >100 m2 | J11: m2 | K11: Nee | L11: ='< 50% slechte bodem'!$J$15 -> 19.38 | M11: ='50-60% slechte bodem'!$J$15 -> 19.38 | N11: ='60-70% slechte bodem'!$J$15 -> 19.38 | O11: ='70-80% slechte bodem'!$J$15 -> 19.38 | P11: ='> 80% slechte bodem'!$J$15 -> 19.38
A12: Uitvoeringskosten | B12: X | I12: trottoirband | J12: m1 | K12: Nee | L12: ='< 50% slechte bodem'!$K$15 -> 12.6 | M12: ='50-60% slechte bodem'!$K$15 -> 12.6 | N12: ='60-70% slechte bodem'!$K$15 -> 12.6 | O12: ='70-80% slechte bodem'!$K$15 -> 12.6 | P12: ='> 80% slechte bodem'!$K$15 -> 12.6
A13: Uitvoeringskosten | B13: X | I13: opsluit/koprolband | J13: m1 | K13: Nee | L13: ='< 50% slechte bodem'!$L$15 -> 10.07 | M13: ='50-60% slechte bodem'!$L$15 -> 10.07 | N13: ='60-70% slechte bodem'!$L$15 -> 10.07 | O13: ='70-80% slechte bodem'!$L$15 -> 10.07 | P13: ='> 80% slechte bodem'!$L$15 -> 10.07
A14: Uitvoeringskosten | E14: X | I14: klinkers <= 15 m2 | J14: m2 | K14: Nee | L14: =ROUND('< 50% slechte bodem'!$E$15/2/1.2,2) -> 14.01 | M14: =ROUND('50-60% slechte bodem'!$E$15/2/1.2,2) -> 14.01 | N14: =ROUND('60-70% slechte bodem'!$E$15/2/1.2,2) -> 14.01 | O14: =ROUND('70-80% slechte bodem'!$E$15/2/1.2,2) -> 14.01 | P14: =ROUND('> 80% slechte bodem'!$E$15/2/1.2,2) -> 14.01
A15: Uitvoeringskosten | E15: X | I15: klinkers >15 m2 | J15: m2 | K15: Nee | L15: =ROUND('< 50% slechte bodem'!$F$15/2/1.2,2) -> 11.48 | M15: =ROUND('50-60% slechte bodem'!$F$15/2/1.2,2) -> 11.48 | N15: =ROUND('60-70% slechte bodem'!$F$15/2/1.2,2) -> 11.48 | O15: =ROUND('70-80% slechte bodem'!$F$15/2/1.2,2) -> 11.48 | P15: =ROUND('> 80% slechte bodem'!$F$15/2/1.2,2) -> 11.48
A16: Uitvoeringskosten | E16: X | I16: tegels <= 15 m2 | J16: m2 | K16: Nee | L16: =ROUND('< 50% slechte bodem'!$H$15/2/1.2,2) -> 11.12 | M16: =ROUND('50-60% slechte bodem'!$H$15/2/1.2,2) -> 11.12 | N16: =ROUND('60-70% slechte bodem'!$H$15/2/1.2,2) -> 11.12 | O16: =ROUND('70-80% slechte bodem'!$H$15/2/1.2,2) -> 11.12 | P16: =ROUND('> 80% slechte bodem'!$H$15/2/1.2,2) -> 11.12
A17: Uitvoeringskosten | E17: X | I17: tegels >15 m2 | J17: m2 | K17: Nee | L17: =ROUND('< 50% slechte bodem'!$I$15/2/1.2,2) -> 8.58 | M17: =ROUND('50-60% slechte bodem'!$I$15/2/1.2,2) -> 8.58 | N17: =ROUND('60-70% slechte bodem'!$I$15/2/1.2,2) -> 8.58 | O17: =ROUND('70-80% slechte bodem'!$I$15/2/1.2,2) -> 8.58 | P17: =ROUND('> 80% slechte bodem'!$I$15/2/1.2,2) -> 8.58
A18: Uitvoeringskosten | E18: X | I18: trottoirband | J18: m1 | K18: Nee | L18: =ROUND('< 50% slechte bodem'!$K$15/2/1.2,2) -> 5.25 | M18: =ROUND('50-60% slechte bodem'!$K$15/2/1.2,2) -> 5.25 | N18: =ROUND('60-70% slechte bodem'!$K$15/2/1.2,2) -> 5.25 | O18: =ROUND('70-80% slechte bodem'!$K$15/2/1.2,2) -> 5.25 | P18: =ROUND('> 80% slechte bodem'!$K$15/2/1.2,2) -> 5.25
A19: Uitvoeringskosten | E19: X | I19: opsluit/koprolband | J19: m1 | K19: Nee | L19: =ROUND('< 50% slechte bodem'!$L$15/2/1.2,2) -> 4.2 | M19: =ROUND('50-60% slechte bodem'!$L$15/2/1.2,2) -> 4.2 | N19: =ROUND('60-70% slechte bodem'!$L$15/2/1.2,2) -> 4.2 | O19: =ROUND('70-80% slechte bodem'!$L$15/2/1.2,2) -> 4.2 | P19: =ROUND('> 80% slechte bodem'!$L$15/2/1.2,2) -> 4.2
A20: Uitvoeringskosten | H20: X | I20: berm / gazon <= 15 m2, herstel gemeente | J20: opbr. | K20: Nee | L20: ='< 50% slechte bodem'!$M$15*15 -> 35.55 | M20: ='50-60% slechte bodem'!$M$15*15 -> 35.55 | N20: ='60-70% slechte bodem'!$M$15*15 -> 35.55 | O20: ='70-80% slechte bodem'!$M$15*15 -> 35.55 | P20: ='> 80% slechte bodem'!$M$15*15 -> 35.55
A21: Uitvoeringskosten | H21: X | I21: berm / gazon >15 m2, herstel gemeente | J21: m2 | K21: Nee | L21: ='< 50% slechte bodem'!$M$15 -> 2.37 | M21: ='50-60% slechte bodem'!$M$15 -> 2.37 | N21: ='60-70% slechte bodem'!$M$15 -> 2.37 | O21: ='70-80% slechte bodem'!$M$15 -> 2.37 | P21: ='> 80% slechte bodem'!$M$15 -> 2.37
A22: Onderhoudskosten | B22: X | D22: X | G22: X | I22: klinkers <= 15 m2 | J22: m2 | K22: Ja | L22: ='< 50% slechte bodem'!$E$16 -> 2.49 | M22: ='50-60% slechte bodem'!$E$16 -> 2.81 | N22: ='60-70% slechte bodem'!$E$16 -> 3.77 | O22: ='70-80% slechte bodem'!$E$16 -> 5.73 | P22: ='> 80% slechte bodem'!$E$16 -> 6.39
A23: Onderhoudskosten | B23: X | D23: X | G23: X | I23: klinkers >15 m2 | J23: m2 | K23: Ja | L23: ='< 50% slechte bodem'!$F$16 -> 2.04 | M23: ='50-60% slechte bodem'!$F$16 -> 2.3 | N23: ='60-70% slechte bodem'!$F$16 -> 3.08 | O23: ='70-80% slechte bodem'!$F$16 -> 4.7 | P23: ='> 80% slechte bodem'!$F$16 -> 5.23
A24: Onderhoudskosten | B24: X | I24: klinkers >100 m2 | J24: m2 | K24: Ja | L24: ='< 50% slechte bodem'!$G$16 -> 1.81 | M24: ='50-60% slechte bodem'!$G$16 -> 2.05 | N24: ='60-70% slechte bodem'!$G$16 -> 2.74 | O24: ='70-80% slechte bodem'!$G$16 -> 4.18 | P24: ='> 80% slechte bodem'!$G$16 -> 4.66
A25: Onderhoudskosten | B25: X | D25: X | G25: X | I25: tegels <= 15 m2 | J25: m2 | K25: Ja | L25: ='< 50% slechte bodem'!$H$16 -> 1.37 | M25: ='50-60% slechte bodem'!$H$16 -> 1.58 | N25: ='60-70% slechte bodem'!$H$16 -> 2.19 | O25: ='70-80% slechte bodem'!$H$16 -> 3.6 | P25: ='> 80% slechte bodem'!$H$16 -> 4.07
A26: Onderhoudskosten | B26: X | D26: X | G26: X | I26: tegels >15 m2 | J26: m2 | K26: Ja | L26: ='< 50% slechte bodem'!$I$16 -> 1.06 | M26: ='50-60% slechte bodem'!$I$16 -> 1.22 | N26: ='60-70% slechte bodem'!$I$16 -> 1.69 | O26: ='70-80% slechte bodem'!$I$16 -> 2.78 | P26: ='> 80% slechte bodem'!$I$16 -> 3.14
A27: Onderhoudskosten | B27: X | I27: tegels >100 m2 | J27: m2 | K27: Ja | L27: ='< 50% slechte bodem'!$J$16 -> 1 | M27: ='50-60% slechte bodem'!$J$16 -> 1.15 | N27: ='60-70% slechte bodem'!$J$16 -> 1.59 | O27: ='70-80% slechte bodem'!$J$16 -> 2.61 | P27: ='> 80% slechte bodem'!$J$16 -> 2.96
A28: Degeneratiekosten | B28: X | C28: X | D28: X | I28: klinkers <= 15 m2 | J28: reparatie | K28: Ja | L28: ='< 50% slechte bodem'!$E$17 -> 9.08 | M28: ='50-60% slechte bodem'!$E$17 -> 12.77 | N28: ='60-70% slechte bodem'!$E$17 -> 23.83 | O28: ='70-80% slechte bodem'!$E$17 -> 36.6 | P28: ='> 80% slechte bodem'!$E$17 -> 44.83
A29: Degeneratiekosten | B29: X | C29: X | D29: X | I29: klinkers >15 m2 | J29: m1 sleuf | K29: Ja | L29: ='< 50% slechte bodem'!$F$18 -> 3.02 | M29: ='50-60% slechte bodem'!$F$18 -> 4.24 | N29: ='60-70% slechte bodem'!$F$18 -> 7.9 | O29: ='70-80% slechte bodem'!$F$18 -> 15.75 | P29: ='> 80% slechte bodem'!$F$18 -> 18.36
A30: Degeneratiekosten | B30: X | I30: klinkers >100 m2 | J30: m1 sleuf | K30: Ja | L30: ='< 50% slechte bodem'!$G$18 -> 2.69 | M30: ='50-60% slechte bodem'!$G$18 -> 3.77 | N30: ='60-70% slechte bodem'!$G$18 -> 7.03 | O30: ='70-80% slechte bodem'!$G$18 -> 14.01 | P30: ='> 80% slechte bodem'!$G$18 -> 16.33
A31: Degeneratiekosten | B31: X | C31: X | D31: X | I31: tegels <= 15 m2 | J31: reparatie | K31: Ja | L31: ='< 50% slechte bodem'!$H$17 -> 0 | M31: ='50-60% slechte bodem'!$H$17 -> 0.9 | N31: ='60-70% slechte bodem'!$H$17 -> 3.6 | O31: ='70-80% slechte bodem'!$H$17 -> 10.36 | P31: ='> 80% slechte bodem'!$H$17 -> 12.61
A32: Degeneratiekosten | B32: X | C32: X | D32: X | I32: tegels >15 m2 | J32: m1 sleuf | K32: Ja | L32: ='< 50% slechte bodem'!$I$18 -> 0 | M32: ='50-60% slechte bodem'!$I$18 -> 0.17 | N32: ='60-70% slechte bodem'!$I$18 -> 0.7 | O32: ='70-80% slechte bodem'!$I$18 -> 8.51 | P32: ='> 80% slechte bodem'!$I$18 -> 11.12
A33: Degeneratiekosten | B33: X | I33: tegels >100 m2 | J33: m1 sleuf | K33: Ja | L33: ='< 50% slechte bodem'!$J$18 -> 0 | M33: ='50-60% slechte bodem'!$J$18 -> 0.16 | N33: ='60-70% slechte bodem'!$J$18 -> 0.65 | O33: ='70-80% slechte bodem'!$J$18 -> 8.01 | P33: ='> 80% slechte bodem'!$J$18 -> 10.47
A34: Beheerskosten | B34: X | C34: X | D34: X | E34: X | F34: X | G34: X | I34: klinkers <= 15 m2 | J34: m2 | K34: Nee | L34: ='< 50% slechte bodem'!$E$19 -> 2.02 | M34: ='50-60% slechte bodem'!$E$19 -> 2.02 | N34: ='60-70% slechte bodem'!$E$19 -> 2.02 | O34: ='70-80% slechte bodem'!$E$19 -> 2.02 | P34: ='> 80% slechte bodem'!$E$19 -> 2.02
A35: Beheerskosten | B35: X | C35: X | D35: X | E35: X | F35: X | G35: X | I35: klinkers >15 m2 | J35: m2 | K35: Nee | L35: ='< 50% slechte bodem'!$F$19 -> 1.65 | M35: ='50-60% slechte bodem'!$F$19 -> 1.65 | N35: ='60-70% slechte bodem'!$F$19 -> 1.65 | O35: ='70-80% slechte bodem'!$F$19 -> 1.65 | P35: ='> 80% slechte bodem'!$F$19 -> 1.65
A36: Beheerskosten | B36: X | I36: klinkers >100 m2 | J36: m2 | K36: Nee | L36: ='< 50% slechte bodem'!$G$19 -> 1.47 | M36: ='50-60% slechte bodem'!$G$19 -> 1.47 | N36: ='60-70% slechte bodem'!$G$19 -> 1.47 | O36: ='70-80% slechte bodem'!$G$19 -> 1.47 | P36: ='> 80% slechte bodem'!$G$19 -> 1.47
A37: Beheerskosten | B37: X | C37: X | D37: X | E37: X | F37: X | G37: X | I37: tegels <= 15 m2 | J37: m2 | K37: Nee | L37: ='< 50% slechte bodem'!$H$19 -> 1.6 | M37: ='50-60% slechte bodem'!$H$19 -> 1.6 | N37: ='60-70% slechte bodem'!$H$19 -> 1.6 | O37: ='70-80% slechte bodem'!$H$19 -> 1.6 | P37: ='> 80% slechte bodem'!$H$19 -> 1.6
A38: Beheerskosten | B38: X | C38: X | D38: X | E38: X | F38: X | G38: X | I38: tegels >15 m2 | J38: m2 | K38: Nee | L38: ='< 50% slechte bodem'!$I$19 -> 1.24 | M38: ='50-60% slechte bodem'!$I$19 -> 1.24 | N38: ='60-70% slechte bodem'!$I$19 -> 1.24 | O38: ='70-80% slechte bodem'!$I$19 -> 1.24 | P38: ='> 80% slechte bodem'!$I$19 -> 1.24
A39: Beheerskosten | B39: X | I39: tegels >100 m2 | J39: m2 | K39: Nee | L39: ='< 50% slechte bodem'!$J$19 -> 1.16 | M39: ='50-60% slechte bodem'!$J$19 -> 1.16 | N39: ='60-70% slechte bodem'!$J$19 -> 1.16 | O39: ='70-80% slechte bodem'!$J$19 -> 1.16 | P39: ='> 80% slechte bodem'!$J$19 -> 1.16
A40: Beheerskosten | B40: X | C40: X | D40: X | E40: X | F40: X | G40: X | I40: trottoirband | J40: m1 | K40: Nee | L40: ='< 50% slechte bodem'!$K$19 -> 0.76 | M40: ='50-60% slechte bodem'!$K$19 -> 0.76 | N40: ='60-70% slechte bodem'!$K$19 -> 0.76 | O40: ='70-80% slechte bodem'!$K$19 -> 0.76 | P40: ='> 80% slechte bodem'!$K$19 -> 0.76
A41: Beheerskosten | B41: X | C41: X | D41: X | E41: X | F41: X | G41: X | I41: opsluit/koprolband | J41: m1 | K41: Nee | L41: ='< 50% slechte bodem'!$L$19 -> 0.6 | M41: ='50-60% slechte bodem'!$L$19 -> 0.6 | N41: ='60-70% slechte bodem'!$L$19 -> 0.6 | O41: ='70-80% slechte bodem'!$L$19 -> 0.6 | P41: ='> 80% slechte bodem'!$L$19 -> 0.6
A42: Beheerskosten | H42: X | I42: berm / gazon <= 15 m2, herstel gemeente | J42: reparatie | K42: Nee | L42: ='< 50% slechte bodem'!$M$19*15 -> 2.1 | M42: ='50-60% slechte bodem'!$M$19*15 -> 2.1 | N42: ='60-70% slechte bodem'!$M$19*15 -> 2.1 | O42: ='70-80% slechte bodem'!$M$19*15 -> 2.1 | P42: ='> 80% slechte bodem'!$M$19*15 -> 2.1
A43: Beheerskosten | H43: X | I43: berm / gazon >15 m2, herstel gemeente | J43: m2 | K43: Nee | L43: ='< 50% slechte bodem'!$M$19 -> 0.14 | M43: ='50-60% slechte bodem'!$M$19 -> 0.14 | N43: ='60-70% slechte bodem'!$M$19 -> 0.14 | O43: ='70-80% slechte bodem'!$M$19 -> 0.14 | P43: ='> 80% slechte bodem'!$M$19 -> 0.14
A44: Beheerskosten | H44: X | I44: berm / gazon <= 15 m2, herstel aanbieder | J44: reparatie | K44: Nee | L44: ='< 50% slechte bodem'!$M$19*15 -> 2.1 | M44: ='50-60% slechte bodem'!$M$19*15 -> 2.1 | N44: ='60-70% slechte bodem'!$M$19*15 -> 2.1 | O44: ='70-80% slechte bodem'!$M$19*15 -> 2.1 | P44: ='> 80% slechte bodem'!$M$19*15 -> 2.1
A45: Beheerskosten | H45: X | I45: berm / gazon >15 m2, herstel aanbieder | J45: m2 | K45: Nee | L45: ='< 50% slechte bodem'!$M$19 -> 0.14 | M45: ='50-60% slechte bodem'!$M$19 -> 0.14 | N45: ='60-70% slechte bodem'!$M$19 -> 0.14 | O45: ='70-80% slechte bodem'!$M$19 -> 0.14 | P45: ='> 80% slechte bodem'!$M$19 -> 0.14
A48: De bedragen (L6..P45) vanuit deze brontabel kopiëren (met plakken - waarde) naar het tabblad "Tabel Tarieven" van bestand richtlijn-tarieven-graaf-werkzaamheden xxxx Kopieer ook K1 naar K1 (plakken waarde).
Q524: 2.14 | R524: 7.81 | S524: 0 | T524: 1.74
Q525: 1.75 | R525: 0 | S525: 2.59 | T525: 1.42
Q526: 1.55 | R526: 0 | S526: 2.3 | T526: 1.26
Q527: 1.18 | R527: 0 | S527: 0 | T527: 1.37
Q528: 0.91 | R528: 0 | S528: 0 | T528: 1.06
Q529: 0.85 | R529: 0 | S529: 0 | T529: 0.99
T530: 0.65
T531: 0.51
R532: 7.81 | S532: 0 | T532: 1.74
R533: 0 | S533: 2.59 | T533: 1.42
R534: 0 | S534: 0 | T534: 1.37
R535: 0 | S535: 0 | T535: 1.06
T536: 0.65
T537: 0.51
Q538: 2.14 | R538: 7.81 | S538: 0 | T538: 1.74
Q539: 1.75 | R539: 0 | S539: 2.59 | T539: 1.42
Q540: 1.18 | R540: 0 | S540: 0 | T540: 1.37
Q541: 0.91 | R541: 0 | S541: 0 | T541: 1.06
T542: 0.65
T543: 0.51
Q544: 2.14 | T544: 1.74
Q545: 1.75 | T545: 1.42
Q546: 1.18 | T546: 1.37
Q547: 0.91 | T547: 1.06
T548: 0.65
T549: 0.51
T550: 1.74
T551: 1.42
T552: 1.37
T553: 1.06
T554: 0.65
T555: 0.51
Q556: 2.14 | T556: 1.74
Q557: 1.75 | T557: 1.42
Q558: 1.18 | T558: 1.37
Q559: 0.91 | T559: 1.06
T560: 0.65
T561: 0.51
T562: 0.11
T563: 0.11
Q564: 2.41 | R564: 10.98 | S564: 0 | T564: 1.74
Q565: 1.97 | R565: 0 | S565: 3.64 | T565: 1.42
Q566: 1.75 | R566: 0 | S566: 3.24 | T566: 1.26
Q567: 1.35 | R567: 0.77 | S567: 0 | T567: 1.37
Q568: 1.04 | R568: 0 | S568: 0.15 | T568: 1.06
Q569: 0.98 | R569: 0 | S569: 0.14 | T569: 0.99
R570: 10.98 | S570: 0 | T570: 1.74
R571: 0 | S571: 3.64 | T571: 1.42
R572: 0.77 | S572: 0 | T572: 1.37
R573: 0 | S573: 0.15 | T573: 1.06
Q574: 2.41 | R574: 10.98 | S574: 0 | T574: 1.74
Q575: 1.97 | R575: 0 | S575: 3.64 | T575: 1.42
Q576: 1.35 | R576: 0.77 | S576: 0 | T576: 1.37
Q577: 1.04 | R577: 0 | S577: 0.15 | T577: 1.06
Q578: 2.41 | T578: 1.74
Q579: 1.97 | T579: 1.42
Q580: 1.35 | T580: 1.37
Q581: 1.04 | T581: 1.06
T582: 1.74
T583: 1.42
T584: 1.37
T585: 1.06
Q586: 2.41 | T586: 1.74
Q587: 1.97 | T587: 1.42
Q588: 1.35 | T588: 1.37
Q589: 1.04 | T589: 1.06
Q590: 3.24 | R590: 20.5 | S590: 0 | T590: 1.74
Q591: 2.65 | R591: 0 | S591: 6.79 | T591: 1.42
Q592: 2.35 | R592: 0 | S592: 6.03 | T592: 1.26
Q593: 1.88 | R593: 3.09 | S593: 0 | T593: 1.37
Q594: 1.45 | R594: 0 | S594: 0.6 | T594: 1.06
Q595: 1.36 | R595: 0 | S595: 0.56 | T595: 0.99
R596: 20.5 | S596: 0 | T596: 1.74
R597: 0 | S597: 6.79 | T597: 1.42
R598: 3.09 | S598: 0 | T598: 1.37
R599: 0 | S599: 0.6 | T599: 1.06
Q600: 3.24 | R600: 20.5 | S600: 0 | T600: 1.74
Q601: 2.65 | R601: 0 | S601: 6.79 | T601: 1.42
Q602: 1.88 | R602: 3.09 | S602: 0 | T602: 1.37
Q603: 1.45 | R603: 0 | S603: 0.6 | T603: 1.06
Q604: 3.24 | T604: 1.74
Q605: 2.65 | T605: 1.42
Q606: 1.88 | T606: 1.37
Q607: 1.45 | T607: 1.06
T608: 1.74
T609: 1.42
T610: 1.37
T611: 1.06
Q612: 3.24 | T612: 1.74
Q613: 2.65 | T613: 1.42
Q614: 1.88 | T614: 1.37
Q615: 1.45 | T615: 1.06
Q616: 4.93 | R616: 31.48 | S616: 0 | T616: 1.74
Q617: 4.03 | R617: 0 | S617: 13.52 | T617: 1.42
Q618: 3.58 | R618: 0 | S618: 12.01 | T618: 1.26
Q619: 3.09 | R619: 8.89 | S619: 0 | T619: 1.37
Q620: 2.38 | R620: -,-- | S620: 7.29 | T620: 1.06
Q621: 2.24 | R621: 0 | S621: 6.86 | T621: 0.99
R622: 31.48 | S622: 0 | T622: 1.74
R623: 0 | S623: 13.52 | T623: 1.42
R624: 8.89 | S624: 0 | T624: 1.37
R625: -,-- | S625: 7.29 | T625: 1.06
Q626: 4.93 | R626: 31.48 | S626: 0 | T626: 1.74
Q627: 4.03 | R627: 0 | S627: 13.52 | T627: 1.42
Q628: 3.09 | R628: 8.89 | S628: 0 | T628: 1.37
Q629: 2.38 | R629: -,-- | S629: 7.29 | T629: 1.06
Q630: 4.93 | T630: 1.74
Q631: 4.03 | T631: 1.42
Q632: 3.09 | T632: 1.37
Q633: 2.38 | T633: 1.06
T634: 1.74
T635: 1.42
T636: 1.37
T637: 1.06
Q638: 4.93 | T638: 1.74
Q639: 4.03 | T639: 1.42
Q640: 3.09 | T640: 1.37
Q641: 2.38 | T641: 1.06
Q642: 5.49 | R642: 38.56 | S642: 0 | T642: 1.74
Q643: 4.49 | R643: 0 | S643: 15.77 | T643: 1.42
Q644: 3.99 | R644: 0 | S644: 14.01 | T644: 1.26
Q645: 3.49 | R645: 10.83 | S645: 0 | T645: 1.37
Q646: 2.69 | R646: 0 | S646: 9.53 | T646: 1.06
Q647: 2.53 | R647: 0 | S647: 8.95 | T647: 0.99
R648: 38.56 | S648: 0 | T648: 1.74
R649: 0 | S649: 15.77 | T649: 1.42
R650: 10.83 | S650: 0 | T650: 1.37
R651: 0 | S651: 9.53 | T651: 1.06
Q652: 5.49 | R652: 38.56 | S652: 0 | T652: 1.74
Q653: 4.49 | R653: 0 | S653: 15.77 | T653: 1.42
Q654: 3.49 | R654: 10.83 | S654: 0 | T654: 1.37
Q655: 2.69 | R655: 0 | S655: 9.53 | T655: 1.06
Q656: 5.49 | T656: 1.74
Q657: 4.49 | T657: 1.42
Q658: 3.49 | T658: 1.37
Q659: 2.69 | T659: 1.06
T660: 1.74
T661: 1.42
T662: 1.37
T663: 1.06
Q664: 5.49 | T664: 1.74
Q665: 4.49 | T665: 1.42
Q666: 3.49 | T666: 1.37
Q667: 2.69 | T667: 1.06
